Body Name,Body,Service Level,Expense Type,Expense Code,Narrative,Date,Transaction Number,Amount,Capital and Revenue,Supplier Name,Supplier ID
South Ribble Council,http://statistics.data.gov.uk/doc/local-authority/30UN,Housing,Cap Grant- Improve Grants,C570,DFG Work at ADDRESS REDACTED Agreed to pay 50%.,19/07/2017,0000433415,"1,300.00",Revenue,ABBI PROPERTY SERVICES LTD,131357
South Ribble Council,http://statistics.data.gov.uk/doc/local-authority/30UN,HR & Communications,Training Expense-Course Fees,1405,PO raised on wrong ac annual conf,12/07/2017,0000432960,250.00,Revenue,ACES,132292
South Ribble Council,http://statistics.data.gov.uk/doc/local-authority/30UN,Neighbourhood Admin & Support,Operational Furniture & Equip,4010,Galaxy Tab S2 8`` 32GB Wifi + 4G,14/07/2017,0000433026,353.00,Revenue,ACS SYSTEMS UK LTD,00070166
South Ribble Council,http://statistics.data.gov.uk/doc/local-authority/30UN,Neighbourhood Admin & Support,Operational Furniture & Equip,4010,Maclock tempered glass,14/07/2017,0000433026,39.00,Revenue,ACS SYSTEMS UK LTD,00070166
South Ribble Council,http://statistics.data.gov.uk/doc/local-authority/30UN,Neighbourhood Admin & Support,Operational Furniture & Equip,4010,Griffin Survivor case,14/07/2017,0000433026,38.00,Revenue,ACS SYSTEMS UK LTD,00070166
South Ribble Council,http://statistics.data.gov.uk/doc/local-authority/30UN,Neighbourhood Admin & Support,Operational Furniture & Equip,4010,Dicota stylus,14/07/2017,0000433026,10.80,Revenue,ACS SYSTEMS UK LTD,00070166
South Ribble Council,http://statistics.data.gov.uk/doc/local-authority/30UN,Area 2 - Waste Transport/Eastern & Central Teams,Materials General,4040,"2 BRAKE CALIPERS, SET BRAKE PADS, P967 SHG JFC8741",12/07/2017,0000433229,270.03,Revenue,AFL (AUTO FACTORS) LTD,00013848
South Ribble Council,http://statistics.data.gov.uk/doc/local-authority/30UN,Area 3 - Parks/Leyland East West,Capital Expenditure,C230,Replacement of existing display house. (Timber frame with aluminium messenger frame),28/07/2017,0000433597,"47,500.00",Revenue,Alitex Ltd,132080
South Ribble Council,http://statistics.data.gov.uk/doc/local-authority/30UN,Revenues Plus,Financial,4811,post office,07/07/2017,0000433141,"1,171.10",Revenue,ALLPAY LTD,00122276
South Ribble Council,http://statistics.data.gov.uk/doc/local-authority/30UN,Revenues Plus,Financial,4811,paypoint,07/07/2017,0000433141,187.96,Revenue,ALLPAY LTD,00122276
South Ribble Council,http://statistics.data.gov.uk/doc/local-authority/30UN,Revenues Plus,Financial,4811,webconnect,07/07/2017,0000433141,46.56,Revenue,ALLPAY LTD,00122276
South Ribble Council,http://statistics.data.gov.uk/doc/local-authority/30UN,Area 2 - Waste Transport/Eastern & Central Teams,Materials General,4040,1 X CLUTCH - 0107- JFC8894,12/07/2017,0000433224,352.33,Revenue,BALMERS GM LTD,00016023
South Ribble Council,http://statistics.data.gov.uk/doc/local-authority/30UN,Area 3 - Parks/Leyland East West,Materials General,4046,Please supply & deliver as per email of the 04/07/2017. Herbaceous Plants.,28/07/2017,0000433245,257.00,Revenue,BANNISTER HALL LANDSCAPE SUPPLIES,00117786
South Ribble Council,http://statistics.data.gov.uk/doc/local-authority/30UN,Area 3 - Parks/Leyland East West,Materials General,4046,Delivery,28/07/2017,0000433245,25.00,Revenue,BANNISTER HALL LANDSCAPE SUPPLIES,00117786
South Ribble Council,http://statistics.data.gov.uk/doc/local-authority/30UN,Shared Financial Services,Legal,4822,NAME REDACTED - 06/04/17 - HM Courts - Court costs 139 liability orders,05/07/2017,0000432317,417.00,Revenue,Barclays Bank Plc,130842
South Ribble Council,http://statistics.data.gov.uk/doc/local-authority/30UN,Shared Financial Services,General Travel Costs,3411,NAME REDACTED - 28/03/17 - Virgin Trains - Royal Visit Garden Party - York to London 15/5/17,05/07/2017,0000432317,159.00,Revenue,Barclays Bank Plc,130842
South Ribble Council,http://statistics.data.gov.uk/doc/local-authority/30UN,Shared Financial Services,Training Expense-Course Fees,1403,NAME REDACTED - 28/03/17 - Ilex.org.uk - Exam fees - NAME REDACTED,05/07/2017,0000432317,248.00,Revenue,Barclays Bank Plc,130842
South Ribble Council,http://statistics.data.gov.uk/doc/local-authority/30UN,Shared Financial Services,General Travel Costs,3411,NAME REDACTED - 29/03/17 - Virgin Trains - Training course - Preston to Birmingham 4/4/17,05/07/2017,0000432317,71.55,Revenue,Barclays Bank Plc,130842
South Ribble Council,http://statistics.data.gov.uk/doc/local-authority/30UN,Shared Financial Services,Training Expense-Course Fees,1403,NAME REDACTED - 31/03/17 - Cilex Law School - Revision Course x2 NAME REDACTED,05/07/2017,0000432317,416.66,Revenue,Barclays Bank Plc,130842
South Ribble Council,http://statistics.data.gov.uk/doc/local-authority/30UN,Shared Financial Services,Rents,2403,NAME REDACTED - 05/04/17 - Travelodge - Accomodation,05/07/2017,0000432317,10.00,Revenue,Barclays Bank Plc,130842
South Ribble Council,http://statistics.data.gov.uk/doc/local-authority/30UN,Shared Financial Services,Training Expense-Course Fees,1402,NAME REDACTED - 20/04/17 - Paypal NWEEG - NWEEG Conference & Awards 18/05/17,05/07/2017,0000432317,102.00,Revenue,Barclays Bank Plc,130842
South Ribble Council,http://statistics.data.gov.uk/doc/local-authority/30UN,Shared Financial Services,General Travel Costs,3411,NAME REDACTED - 21/04/17 - Virgin Trains - Royal Garden Party - Preston to London 23/5/17,05/07/2017,0000432317,341.30,Revenue,Barclays Bank Plc,130842
South Ribble Council,http://statistics.data.gov.uk/doc/local-authority/30UN,Shared Financial Services,General Travel Costs,3411,NAME REDACTED - 24/03/17 - Virgin Trains - Training Course - Preston to Birmingham,05/07/2017,0000432317,52.55,Revenue,Barclays Bank Plc,130842
South Ribble Council,http://statistics.data.gov.uk/doc/local-authority/30UN,Shared Financial Services,General Travel Costs,3411,NAME REDACTED - 02/05/17 - Virgin Trains - tickets Preston to London NAMES REDACTED,05/07/2017,0000432806,416.00,Revenue,Barclays Bank Plc,130842
South Ribble Council,http://statistics.data.gov.uk/doc/local-authority/30UN,Shared Financial Services,Other Misc,4851,NAME REDACTED - 10/05/07 - Basecamp,05/07/2017,0000432806,398.09,Revenue,Barclays Bank Plc,130842
South Ribble Council,http://statistics.data.gov.uk/doc/local-authority/30UN,Shared Financial Services,Other Expenses,4630,NAME REDACTED - 15/05/17 - Virgin Trains - tickets Preston to London NAME REDACTED,05/07/2017,0000432806,209.00,Revenue,Barclays Bank Plc,130842
South Ribble Council,http://statistics.data.gov.uk/doc/local-authority/30UN,Shared Financial Services,Consultancy Fees,4541,NAME REDACTED - 19/05/17 - CPC - Rextron KVS 534A 4 Way SVGA splitter,05/07/2017,0000432806,59.28,Revenue,Barclays Bank Plc,130842
South Ribble Council,http://statistics.data.gov.uk/doc/local-authority/30UN,Shared Financial Services,Training Expense-Course Fees,1402,NAME REDACTED - 22/05/17 - CIEH - Training course - Understanding & Applying HHSRS,05/07/2017,0000432806,736.00,Revenue,Barclays Bank Plc,130842
South Ribble Council,http://statistics.data.gov.uk/doc/local-authority/30UN,Regeneration,Other Misc,4851,Pedestrian and cycling study,28/07/2017,0000433576,"1,200.00",Revenue,Barrons,132059
South Ribble Council,http://statistics.data.gov.uk/doc/local-authority/30UN,Property Services,Rep & Maint Premises,2020,2017 / 2018 annual electrical test for the toilet at Worden Craft centre,12/07/2017,0000433318,252.22,Revenue,BELEC ELECTRICAL LTD,130290
South Ribble Council,http://statistics.data.gov.uk/doc/local-authority/30UN,Property Services,Rep & Maint Premises,2020,Annual Contract 2017/2018 Electrical Testing and Fan Convector Maintenance at  Sports Pavilions (except Worden Park ),12/07/2017,0000433319,276.00,Revenue,BELEC ELECTRICAL LTD,130290
South Ribble Council,http://statistics.data.gov.uk/doc/local-authority/30UN,Property Services,Rep & Maint Premises,2020,Annual care plan 2016 / 2017  for Leyland museum,14/07/2017,0000433321,310.64,Revenue,BRITISH GAS SERVICES (COMMERCIAL) LTD,00016214
South Ribble Council,http://statistics.data.gov.uk/doc/local-authority/30UN,Property Services,Rep & Maint Premises,2020,"Annual contract 2017 / 2018 for care plan 3 at Kingsfold Community Centre, Kingsfold Drive, Penwortham",26/07/2017,0000433513,621.55,Revenue,BRITISH GAS SERVICES (COMMERCIAL) LTD,00016214
South Ribble Council,http://statistics.data.gov.uk/doc/local-authority/30UN,Property Services,Rep & Maint Premises,2020,Annual contract 2017 / 2018 for care plan 3 at Citizens advice bureau,26/07/2017,0000433514,291.57,Revenue,BRITISH GAS SERVICES (COMMERCIAL) LTD,00016214
South Ribble Council,http://statistics.data.gov.uk/doc/local-authority/30UN,Area 3 - Parks/Leyland East West,Advertising,4842,DESIGN FOLD OUT Z MAP FOR HURST GRANGE PARK ESTIMATE 6 DAYS@ 200,05/07/2017,0000432013,"1,000.00",Revenue,BUCHANAN HERITAGE & DESIGN,130775
South Ribble Council,http://statistics.data.gov.uk/doc/local-authority/30UN,HR & Communications,Training Expense-Course Fees,1405,SAFEGUARDING TRAINING ON THE 20TH JUNE 2017,14/07/2017,0000432849,"1,500.00",Revenue,Calico Enterprise,132188
South Ribble Council,http://statistics.data.gov.uk/doc/local-authority/30UN,Environmental Health,Other Misc,4851,Aftathougt to deliver a Multi-Agency Hate Crime Workshop on 28th June - ref HATECRI per NAME REDACTED,14/07/2017,0000433205,"1,600.00",Revenue,Calico Enterprise,132188
South Ribble Council,http://statistics.data.gov.uk/doc/local-authority/30UN,Environmental Health,Licence Fees,488B,2nd QTR,14/07/2017,0000433219,"1,125.00",Revenue,Carr Street Community Centre,130312
South Ribble Council,http://statistics.data.gov.uk/doc/local-authority/30UN,Area 3 - Parks/Leyland East West,Grounds Maint Cntrctrs Chgs,4657,2 No 139mm HANG POSTS WITH DOMED CAPS 2 No 3000mm GATE WITH PADLOCKABLE SLIDE BOLT ON ONE LEAF,14/07/2017,0000433350,664.00,Revenue,CENTREWIRE,131861
South Ribble Council,http://statistics.data.gov.uk/doc/local-authority/30UN,Area 3 - Parks/Leyland East West,Grounds Maint Cntrctrs Chgs,4657,DELIVERY CHARGE TO PR26 7QR,14/07/2017,0000433350,80.00,Revenue,CENTREWIRE,131861
South Ribble Council,http://statistics.data.gov.uk/doc/local-authority/30UN,Homelessness,Contributions,4730,Block Booking ADDRESS REDACTED June 2017,05/07/2017,0000433019,"1,058.40",Revenue,CHORLEY BOROUGH COUNCIL,00017352
South Ribble Council,http://statistics.data.gov.uk/doc/local-authority/30UN,Homelessness,Contractors Charges 5,5311,"ADDRESS REDACTED , SRBC placement (DB)  28 days from 6/06/17  3/07/17  28 days at 35.28 = 987.84 +vat",14/07/2017,0000433346,987.84,Revenue,CHORLEY BOROUGH COUNCIL,00017352
South Ribble Council,http://statistics.data.gov.uk/doc/local-authority/30UN,Property Services,Rep & Maint Premises,2020,please can you supply  the following light bulbs :-  F26/840/4P X 30 F32/840/4P X 30 18W/840 X 25 17W/Warm Comfort/E27 X,12/07/2017,0000433027,346.45,Revenue,CHORLEY ELECTRICAL TRADERS LTD,00018597
South Ribble Council,http://statistics.data.gov.uk/doc/local-authority/30UN,Shared Financial Services,Consultancy Fees,4541,Lease consultancy fee for 1st April 2017 - 31st March 2018,12/07/2017,0000433250,500.00,Revenue,CHRYSTAL CONSULTING LTD,00047717
South Ribble Council,http://statistics.data.gov.uk/doc/local-authority/30UN,Area 2 - Waste Transport/Eastern & Central Teams,External Contractors Charges,4570,SPEC REPAIR - PJ62UCM - JFC8994,28/07/2017,0000433630,362.86,Revenue,CICELEY COMMERCIALS LTD,00059381
South Ribble Council,http://statistics.data.gov.uk/doc/local-authority/30UN,Development Enterprise & Comm Mgnt,Other Misc,4851,"Leyland Festival -  Sat 17th June 2017  Friday 16th June 2017 8pm - 7am 4 x security (2 on gate, 2 walkabout) 616 Saturday",12/07/2017,0000433251,"1,463.00",Revenue,Circle Security Ltd,132264
South Ribble Council,http://statistics.data.gov.uk/doc/local-authority/30UN,Information Services,Peripherals,4248,Additional charge to SRBC for exceeding Data Storage & Recovery quota for period 01/04/17 - 30/06/17,19/07/2017,0000433399,525.42,Revenue,CIVICA UK LTD,00102717
South Ribble Council,http://statistics.data.gov.uk/doc/local-authority/30UN,HR & Communications,Advertising,4848,Photographic coverage,05/07/2017,0000433110,295.00,Revenue,CLIVE LAWRENCE PHOTOGRAPHY,00122166
South Ribble Council,http://statistics.data.gov.uk/doc/local-authority/30UN,Development Enterprise & Comm Mgnt,Sports Dev Expenses,4894,drawing of orienteering Maps for the following schools and teaching packs:  Kingsfold  Moss Side  Brindle St Josephs,12/07/2017,0000433252,"1,080.00",Revenue,Cloughaman Maps,131671
South Ribble Council,http://statistics.data.gov.uk/doc/local-authority/30UN,Customer Contact,Operational Furniture & Equip,4010,Please supply 25 x Jabra BIZ 2300 Mono headset NC - NB @ 65 each  As per quote QUO0002878 sent to NAME REDACTED,19/07/2017,0000433392,"1,625.00",Revenue,Corporate Direct (Europe) Ltd. t/as Corporate Tele,132297
South Ribble Council,http://statistics.data.gov.uk/doc/local-authority/30UN,Revenues Plus,Postage,4291,Postage - June 2017,14/07/2017,0000433336,618.64,Revenue,CRITIQOM,131053
South Ribble Council,http://statistics.data.gov.uk/doc/local-authority/30UN,Revenues Plus,Postage,4291,Postage - June 2017,14/07/2017,0000433342,654.53,Revenue,CRITIQOM,131053
South Ribble Council,http://statistics.data.gov.uk/doc/local-authority/30UN,Revenues Plus,Postage,4291,Postage July 17,19/07/2017,0000433373,399.64,Revenue,CRITIQOM,131053
South Ribble Council,http://statistics.data.gov.uk/doc/local-authority/30UN,Revenues Plus,Postage,4291,Postage July 17,21/07/2017,0000433509,765.00,Revenue,CRITIQOM,131053
South Ribble Council,http://statistics.data.gov.uk/doc/local-authority/30UN,Housing,Cap Grant- Improve Grants,C570,DFG works to bathroom at ADDRESS REDACTED as per your quote,05/07/2017,0000432875,"4,200.00",Revenue,Croston Plumbing & Heating Ltd,131545
South Ribble Council,http://statistics.data.gov.uk/doc/local-authority/30UN,HR & Communications,Balance Sheet,0030,FULL BIKE PACKAGE FOR NAME REDACTED CYCLE TO WORK SCHEME,14/07/2017,0000432876,499.99,Revenue,CYCLESCHEME CO  UK,130237
South Ribble Council,http://statistics.data.gov.uk/doc/local-authority/30UN,Property Services,Rep & Maint Premises,2020,Annual Contract for maintenance of 1 x  McSmart 240cr Industrial Water Chiller  and 1 x McQuay Air Handling Unit Schedule1,12/07/2017,0000433092,510.00,Revenue,DAIKIN APPLIED SERVICE,130324
South Ribble Council,http://statistics.data.gov.uk/doc/local-authority/30UN,Development Enterprise & Comm Mgnt,Other Misc,4851,Provision of Cycle Training June 2017,14/07/2017,0000433391,"1,215.00",Revenue,David Boyle,132006
South Ribble Council,http://statistics.data.gov.uk/doc/local-authority/30UN,Area 2 - Waste Transport/Eastern & Central Teams,Materials General,4040,"1 track rod, VN10 DKL, JFC9055, (NAME REDACTED)",26/07/2017,0000433544,522.22,Revenue,DENNIS EAGLE LTD,00019774
South Ribble Council,http://statistics.data.gov.uk/doc/local-authority/30UN,Area 2 - Waste Transport/Eastern & Central Teams,Materials General,4040,TRACK ROD - 4 x SPACERS - VN10DKL - JFC9055,26/07/2017,0000433552,333.41,Revenue,DENNIS EAGLE LTD,00019774
South Ribble Council,http://statistics.data.gov.uk/doc/local-authority/30UN,Area 2 - Waste Transport/Eastern & Central Teams,External Contractors Charges,4570,SPEC REPAIR - VN10DKL - JFC9055,28/07/2017,0000433627,940.55,Revenue,DENNIS EAGLE LTD,00019774
South Ribble Council,http://statistics.data.gov.uk/doc/local-authority/30UN,Area 3 - Parks/Leyland East West,Clothing- Uniforms & Laundry,4410,Advance X Flex Trousers - Class I Type C - Small X 1 (ST70098840801) NAME REDACTED Advance X flex Trousers Class I ,05/07/2017,0000433103,535.08,Revenue,DICK LEIGH,00026534
South Ribble Council,http://statistics.data.gov.uk/doc/local-authority/30UN,Area 3 - Parks/Leyland East West,Operational Furniture & Equip,4010,Ecel standard throwline 2mm x 50m X1 (TSKF1051) 14oz throwbag X2 Dick Leigh Combination wrench - spanner X 2 (ST00008,05/07/2017,0000433103,77.48,Revenue,DICK LEIGH,00026534
South Ribble Council,http://statistics.data.gov.uk/doc/local-authority/30UN,Information Services,Peripherals,4248,"FME for Oracle Fixed Maintenance 860.00 and Standard Support for FME 500, for period 29/09/17 - 28/09/18",19/07/2017,0000433407,"1,360.00",Revenue,Dotted Eyes Ltd,131106
South Ribble Council,http://statistics.data.gov.uk/doc/local-authority/30UN,Regeneration,Capital Expenditure,C234,Final Part Payment of Tractor installation .,05/07/2017,0000432887,"13,600.00",Revenue,DP STRUCTURES LTD,00120485
South Ribble Council,http://statistics.data.gov.uk/doc/local-authority/30UN,Property Services,Energy Costs,2303,SEPT & OCT,14/07/2017,0000433066,243.98,Revenue,E.ON,00083441
South Ribble Council,http://statistics.data.gov.uk/doc/local-authority/30UN,Property Services,Energy Costs,2303,LATE PAYMENT,14/07/2017,0000433066,40.00,Revenue,E.ON,00083441
South Ribble Council,http://statistics.data.gov.uk/doc/local-authority/30UN,Property Services,Energy Costs,2303,sept & Oct,14/07/2017,0000433072,40.00,Revenue,E.ON,00083441
South Ribble Council,http://statistics.data.gov.uk/doc/local-authority/30UN,Property Services,Energy Costs,2303,sep & oct,14/07/2017,0000433072,243.98,Revenue,E.ON,00083441
South Ribble Council,http://statistics.data.gov.uk/doc/local-authority/30UN,Property Services,Energy Costs,2303,sep - oct,14/07/2017,0000433078,40.00,Revenue,E.ON,00083441
South Ribble Council,http://statistics.data.gov.uk/doc/local-authority/30UN,Property Services,Energy Costs,2303,sep - oct,14/07/2017,0000433078,243.98,Revenue,E.ON,00083441
South Ribble Council,http://statistics.data.gov.uk/doc/local-authority/30UN,Property Services,Energy Costs,2303,SEPT - OCT,14/07/2017,0000433084,40.00,Revenue,E.ON,00083441
South Ribble Council,http://statistics.data.gov.uk/doc/local-authority/30UN,Property Services,Energy Costs,2303,SEPT - OCT,14/07/2017,0000433084,243.98,Revenue,E.ON,00083441
South Ribble Council,http://statistics.data.gov.uk/doc/local-authority/30UN,Property Services,Energy Costs,2303,oct,14/07/2017,0000433090,40.00,Revenue,E.ON,00083441
South Ribble Council,http://statistics.data.gov.uk/doc/local-authority/30UN,Property Services,Energy Costs,2303,oct,14/07/2017,0000433090,243.98,Revenue,E.ON,00083441
South Ribble Council,http://statistics.data.gov.uk/doc/local-authority/30UN,Information Services,Peripherals,4260,Peripherals,12/07/2017,0000433315,"2,387.12",Revenue,EE Ltd,131653
South Ribble Council,http://statistics.data.gov.uk/doc/local-authority/30UN,Information Services,Capital Expenditure,C234,"Dell PowerEdge R630 1U Rackmount Server, as per quote ref. SQ02645",12/07/2017,0000433261,"3,965.00",Revenue,ETB TECHNOLOGIES LTD,130192
South Ribble Council,http://statistics.data.gov.uk/doc/local-authority/30UN,Information Services,Peripherals,4244,"6 x Dell 300GB SAS 10k 2.5`` 6G E/C MTV7G - R620, plus delivery as per quote",26/07/2017,0000433547,367.00,Revenue,ETB TECHNOLOGIES LTD,130192
South Ribble Council,http://statistics.data.gov.uk/doc/local-authority/30UN,Area 2 - Waste Transport/Eastern & Central Teams,Materials General,4040,LCD CONTROL SCREEN - PO13 UUM - JFC........ ,12/07/2017,0000433295,361.90,Revenue,Farid Hillend Engineering Limited,130575
South Ribble Council,http://statistics.data.gov.uk/doc/local-authority/30UN,Homelessness,Contributions,4730,Bond 600 Rent in Advance Property at ADDRESS REDACTED,19/07/2017,0000433368,"1,100.00",Revenue,Farrell Heyworth,131638
South Ribble Council,http://statistics.data.gov.uk/doc/local-authority/30UN,Area 2 - Waste Transport/Eastern & Central Teams,External Contractors Charges,4570,ADDITIONAL CLINICAL WASTE - JUNE 2017,14/07/2017,0000433291,369.60,Revenue,FCC Environment Services (UK) Ltd,131612
South Ribble Council,http://statistics.data.gov.uk/doc/local-authority/30UN,Area 2 - Waste Transport/Eastern & Central Teams,Balance Sheet,0030,RECYCLING - AGREED RETENTION CLAIM BACK,12/07/2017,0000433292,"21,492.24",Revenue,FCC Environment Services (UK) Ltd,131612
South Ribble Council,http://statistics.data.gov.uk/doc/local-authority/30UN,Area 2 - Waste Transport/Eastern & Central Teams,Balance Sheet,0030,REFUSE - AGREED RETENTION CLAIMBACK,12/07/2017,0000433292,"15,301.09",Revenue,FCC Environment Services (UK) Ltd,131612
South Ribble Council,http://statistics.data.gov.uk/doc/local-authority/30UN,Area 2 - Waste Transport/Eastern & Central Teams,Balance Sheet,0030,CLINICAL - AGREED RETENTION CLAIMBACK,12/07/2017,0000433292,114.27,Revenue,FCC Environment Services (UK) Ltd,131612
South Ribble Council,http://statistics.data.gov.uk/doc/local-authority/30UN,Area 2 - Waste Transport/Eastern & Central Teams,External Contractors Charges,4570,RESIDUAL WASTE - JUNE 2017,14/07/2017,0000433293,"40,257.04",Revenue,FCC Environment Services (UK) Ltd,131612
South Ribble Council,http://statistics.data.gov.uk/doc/local-authority/30UN,Area 2 - Waste Transport/Eastern & Central Teams,External Contractors Charges,4570,DRY RECYCLCABLE (NON TERRACED) - JUNE 2017,14/07/2017,0000433293,"41,226.30",Revenue,FCC Environment Services (UK) Ltd,131612
South Ribble Council,http://statistics.data.gov.uk/doc/local-authority/30UN,Area 2 - Waste Transport/Eastern & Central Teams,External Contractors Charges,4570,DRY RECYCABLE (TERRACED) - JUNE 2017,14/07/2017,0000433293,"1,957.85",Revenue,FCC Environment Services (UK) Ltd,131612
South Ribble Council,http://statistics.data.gov.uk/doc/local-authority/30UN,Area 2 - Waste Transport/Eastern & Central Teams,External Contractors Charges,4570,ORGANIC WASTE (NON TERRACED) - JUNE 2017,14/07/2017,0000433293,"28,574.63",Revenue,FCC Environment Services (UK) Ltd,131612
South Ribble Council,http://statistics.data.gov.uk/doc/local-authority/30UN,Area 2 - Waste Transport/Eastern & Central Teams,External Contractors Charges,4570,SCHEDULE 2 PROPERTIES - JUNE 2017,14/07/2017,0000433293,"1,634.76",Revenue,FCC Environment Services (UK) Ltd,131612
South Ribble Council,http://statistics.data.gov.uk/doc/local-authority/30UN,Area 2 - Waste Transport/Eastern & Central Teams,External Contractors Charges,4570,COMMERCIAL WASTE - JUNE 2017,14/07/2017,0000433293,"6,404.30",Revenue,FCC Environment Services (UK) Ltd,131612
South Ribble Council,http://statistics.data.gov.uk/doc/local-authority/30UN,Area 2 - Waste Transport/Eastern & Central Teams,External Contractors Charges,4570,BULKY WASTE - JUNE 2017,14/07/2017,0000433293,885.34,Revenue,FCC Environment Services (UK) Ltd,131612
South Ribble Council,http://statistics.data.gov.uk/doc/local-authority/30UN,Area 2 - Waste Transport/Eastern & Central Teams,External Contractors Charges,4570,WEEE COLLECTIONS - JUNE 2017,14/07/2017,0000433293,331.03,Revenue,FCC Environment Services (UK) Ltd,131612
South Ribble Council,http://statistics.data.gov.uk/doc/local-authority/30UN,Area 2 - Waste Transport/Eastern & Central Teams,External Contractors Charges,4570,CLINICAL WASTE COLLECTIONS - JUNE 2017,14/07/2017,0000433293,563.74,Revenue,FCC Environment Services (UK) Ltd,131612
South Ribble Council,http://statistics.data.gov.uk/doc/local-authority/30UN,Area 2 - Waste Transport/Eastern & Central Teams,External Contractors Charges,4570,ADDITIONAL PROPERTIES - JUNE 2017,14/07/2017,0000433293,"1,301.95",Revenue,FCC Environment Services (UK) Ltd,131612
South Ribble Council,http://statistics.data.gov.uk/doc/local-authority/30UN,Area 2 - Waste Transport/Eastern & Central Teams,External Contractors Charges,4570,REPLACEMENT BINS - JUNE 2017,14/07/2017,0000433293,"5,000.00",Revenue,FCC Environment Services (UK) Ltd,131612
South Ribble Council,http://statistics.data.gov.uk/doc/local-authority/30UN,Area 3 - Parks/Leyland East West,Grounds Maint Cntrctrs Chgs,4657,6x Treadsafe013 Roof panels for Teen Shelter @ 122.21,21/07/2017,0000433028,733.26,Revenue,FENLAND LEISURE LTD,130725
South Ribble Council,http://statistics.data.gov.uk/doc/local-authority/30UN,Area 3 - Parks/Leyland East West,Grounds Maint Cntrctrs Chgs,4657,2x Hours Manufacturing @ 40,21/07/2017,0000433028,80.00,Revenue,FENLAND LEISURE LTD,130725
South Ribble Council,http://statistics.data.gov.uk/doc/local-authority/30UN,Area 3 - Parks/Leyland East West,Grounds Maint Cntrctrs Chgs,4657,3x Bolt Packs,21/07/2017,0000433028,82.44,Revenue,FENLAND LEISURE LTD,130725
South Ribble Council,http://statistics.data.gov.uk/doc/local-authority/30UN,Area 3 - Parks/Leyland East West,Grounds Maint Cntrctrs Chgs,4657,Delivery,21/07/2017,0000433028,51.00,Revenue,FENLAND LEISURE LTD,130725
South Ribble Council,http://statistics.data.gov.uk/doc/local-authority/30UN,Regeneration,Professional Fees,4520,project conservation support at Walton Park,07/07/2017,0000432966,925.00,Revenue,FILCRIS LTD,130545
South Ribble Council,http://statistics.data.gov.uk/doc/local-authority/30UN,Information Services,Peripherals,4248,Mobile Forms App.  Annual licence renewal charge for period 30/09/17 - 29/09/18,28/07/2017,0000433652,"5,513.00",Revenue,FIRMSTEP,00114022
South Ribble Council,http://statistics.data.gov.uk/doc/local-authority/30UN,Shared Assurance Services,Other Misc,4851,flood grant,07/07/2017,0000433120,"3,650.00",Revenue,NAME REDACTED,132291
South Ribble Council,http://statistics.data.gov.uk/doc/local-authority/30UN,Property Services,Advertising,4842,Order for Gala Graphics - Leyland Market - on behalf of NAME REDACTED Market Manager LYLM bunting 200m 580 Banners,28/07/2017,0000433447,641.66,Revenue,Gala Graphics Ltd,132215
South Ribble Council,http://statistics.data.gov.uk/doc/local-authority/30UN,Property Services,Rep & Maint Premises,2020,"Annual contract for the maintenance of flagpoles 2017/2018 at various sites as per quote Q52616-17 Civic Centre,West Paddock",12/07/2017,0000433034,509.00,Revenue,GLASSFIBRE FLAGPOLES LTD,00087162
South Ribble Council,http://statistics.data.gov.uk/doc/local-authority/30UN,Shared Financial Services,Financial,4816,Financial,05/07/2017,0000432564,772.68,Revenue,GLOBAL PAYMENTS (GPUK LLP),131178
South Ribble Council,http://statistics.data.gov.uk/doc/local-authority/30UN,Shared Financial Services,Financial,4816,Financial,05/07/2017,0000432564,7.00,Revenue,GLOBAL PAYMENTS (GPUK LLP),131178
South Ribble Council,http://statistics.data.gov.uk/doc/local-authority/30UN,Shared Financial Services,Financial,4816,Financial,05/07/2017,0000432565,"1,685.43",Revenue,GLOBAL PAYMENTS (GPUK LLP),131178
South Ribble Council,http://statistics.data.gov.uk/doc/local-authority/30UN,Shared Financial Services,Financial,4816,Financial,05/07/2017,0000432565,7.00,Revenue,GLOBAL PAYMENTS (GPUK LLP),131178
South Ribble Council,http://statistics.data.gov.uk/doc/local-authority/30UN,Shared Financial Services,Financial,4816,Financial,05/07/2017,0000432566,731.56,Revenue,GLOBAL PAYMENTS (GPUK LLP),131178
South Ribble Council,http://statistics.data.gov.uk/doc/local-authority/30UN,Shared Financial Services,Financial,4816,Financial,05/07/2017,0000432566,7.00,Revenue,GLOBAL PAYMENTS (GPUK LLP),131178
South Ribble Council,http://statistics.data.gov.uk/doc/local-authority/30UN,Shared Financial Services,Pensions Increase Act Payments,1701,Rechargeable Pension Costs 2017-18,26/07/2017,0000433503,"6,343.12",Revenue,GREATER MANCHESTER PENSION FUND,00022538
South Ribble Council,http://statistics.data.gov.uk/doc/local-authority/30UN,Area 3 - Parks/Leyland East West,Grounds Maint Cntrctrs Chgs,4657,1x 70200105 Titan Bearing complete Assembly.,21/07/2017,0000432051,"1,042.50",Revenue,HAGS SMP LTD,130596
South Ribble Council,http://statistics.data.gov.uk/doc/local-authority/30UN,Area 3 - Parks/Leyland East West,Grounds Maint Cntrctrs Chgs,4657,Delivery,21/07/2017,0000432051,50.00,Revenue,HAGS SMP LTD,130596
South Ribble Council,http://statistics.data.gov.uk/doc/local-authority/30UN,Area 3 - Parks/Leyland East West,Grounds Maint Cntrctrs Chgs,4657,1x 88020801 Mirage Seat,14/07/2017,0000433258,420.00,Revenue,HAGS SMP LTD,130596
South Ribble Council,http://statistics.data.gov.uk/doc/local-authority/30UN,Area 3 - Parks/Leyland East West,Grounds Maint Cntrctrs Chgs,4657,Carriage,14/07/2017,0000433258,42.00,Revenue,HAGS SMP LTD,130596
South Ribble Council,http://statistics.data.gov.uk/doc/local-authority/30UN,Information Services,Peripherals,4247,Consultancy Eros half day rate - support - 30 June 2017,05/07/2017,0000433122,520.00,Revenue,HALAROSE LTD,00024358
South Ribble Council,http://statistics.data.gov.uk/doc/local-authority/30UN,Information Services,Training Expense-Course Fees,1420,"Halarose Workshop & User Group Meeting, 6th & 7th July 2017, delegate NAME REDACTED",19/07/2017,0000433427,445.00,Revenue,HALAROSE LTD,00024358
South Ribble Council,http://statistics.data.gov.uk/doc/local-authority/30UN,Housing,Cap Grant- Improve Grants,C570,"DFG works to property as per quote at ADDRESS REDACTED  Cost of Work 27,997.12  Client Contribution of 575.88 ",19/07/2017,0000433413,"10,000.00",Revenue,Hall Building Contractors Ltd,131423
South Ribble Council,http://statistics.data.gov.uk/doc/local-authority/30UN,Neighbourhood Admin & Support,Vehicle Running Costs,3132,2000ltrs Gas Oil  @ 45.10 per ltr,14/07/2017,0000433145,901.55,Revenue,Hall Fuels trading name of WFL (UK) Ltd,00116758
South Ribble Council,http://statistics.data.gov.uk/doc/local-authority/30UN,Neighbourhood Admin & Support,Vehicle Running Costs,3132,15000 ltrs diesel @ 89.81 per ltr.,14/07/2017,0000433161,"12,331.37",Revenue,Hall Fuels trading name of WFL (UK) Ltd,00116758
South Ribble Council,http://statistics.data.gov.uk/doc/local-authority/30UN,Neighbourhood Admin & Support,Vehicle Running Costs,3134,2500 LITRES GAS OIL (@45.55 pence per litre),28/07/2017,0000433633,"1,132.75",Revenue,Hall Fuels trading name of WFL (UK) Ltd,00116758
South Ribble Council,http://statistics.data.gov.uk/doc/local-authority/30UN,Neighbourhood Admin & Support,Vehicle Running Costs,3132,"15,000 LITRES DIESEL (@91.26 pence per litre)",28/07/2017,0000433646,"11,402.50",Revenue,Hall Fuels trading name of WFL (UK) Ltd,00116758
South Ribble Council,http://statistics.data.gov.uk/doc/local-authority/30UN,Development Enterprise & Comm Mgnt,Other Misc,4851,Truck Trail launch on Friday 28th April 2017 at British Commercial Vehicle Museum,07/07/2017,0000432900,500.00,Revenue,Hallmark Hotel Preston Leyland,00090117
South Ribble Council,http://statistics.data.gov.uk/doc/local-authority/30UN,Development Enterprise & Comm Mgnt,Other Misc,4851,"South Ribble Sports Awards  Room Hire Verona Suite Set Up 1  - 474.00 Sit Down Meal - Adults 123  @ 22.50per head U11`s",12/07/2017,0000433093,"2,738.75",Revenue,Hallmark Hotel Preston Leyland,00090117
South Ribble Council,http://statistics.data.gov.uk/doc/local-authority/30UN,Property Services,Rep & Maint Premises,2020,"Annual Contract for the inspection of the Fall Arrest System 2017/2018 at the Civic Centre, West Paddock, Leyland",21/07/2017,0000433553,335.00,Revenue,HARCON SERVICES LTD,131220
South Ribble Council,http://statistics.data.gov.uk/doc/local-authority/30UN,Property Services,Agency Fees,1121,Staff fees for property maintenance officer from June 2017.,14/07/2017,0000433338,852.13,Revenue,Hays Specialist Recruitment Ltd,132288
South Ribble Council,http://statistics.data.gov.uk/doc/local-authority/30UN,Property Services,Agency Fees,1121,Staff fees for property maintenance officer from June 2017.,19/07/2017,0000433430,"1,024.84",Revenue,Hays Specialist Recruitment Ltd,132288
South Ribble Council,http://statistics.data.gov.uk/doc/local-authority/30UN,Property Services,Agency Fees,1121,Staff fees for property maintenance officer from June 2017.,19/07/2017,0000433436,644.86,Revenue,Hays Specialist Recruitment Ltd,132288
South Ribble Council,http://statistics.data.gov.uk/doc/local-authority/30UN,Property Services,Agency Fees,1121,Staff fees for property maintenance officer from June 2017.,28/07/2017,0000433613,852.13,Revenue,Hays Specialist Recruitment Ltd,132288
South Ribble Council,http://statistics.data.gov.uk/doc/local-authority/30UN,Planning,Other Misc,485R,Refund,19/07/2017,0000433263,385.00,Revenue,NAME REDACTED,132293
South Ribble Council,http://statistics.data.gov.uk/doc/local-authority/30UN,Environmental Health,Licence Fees,488B,2 qtr,14/07/2017,0000433220,"1,000.00",Revenue,HIGHER WALTON COMMUNITY CENTRE,00070535
South Ribble Council,http://statistics.data.gov.uk/doc/local-authority/30UN,HR & Communications,Advertising,4848,Photographic coverage,05/07/2017,0000433096,525.00,Revenue,IAN ROBINSON,132041
South Ribble Council,http://statistics.data.gov.uk/doc/local-authority/30UN,HR & Communications,Advertising,4848,Photographic coverage for Staff Pictures,14/07/2017,0000433341,250.00,Revenue,IAN ROBINSON,132041
South Ribble Council,http://statistics.data.gov.uk/doc/local-authority/30UN,HR & Communications,Advertising,4848,PHOTO COVERAGE OF THE WORKING BETTER TOGETHER WORKSHOPS,28/07/2017,0000433533,275.00,Revenue,IAN ROBINSON,132041
South Ribble Council,http://statistics.data.gov.uk/doc/local-authority/30UN,HR & Communications,Training Expense-Course Fees,1405,"UNIFORM SYSTEM SUPERVISOR COURSE, UNIFORM DOCUMENT TEMPLATE COURSE & UNIFORM REPORT WRITING ",14/07/2017,0000432970,"3,500.00",Revenue,IDOX PLC,00104485
South Ribble Council,http://statistics.data.gov.uk/doc/local-authority/30UN,Revenues Plus,Professional Fees,4510,RV finder - Four Oaks Road,12/07/2017,0000433316,"6,075.00",Revenue,Inform CPI Ltd,131666
South Ribble Council,http://statistics.data.gov.uk/doc/local-authority/30UN,Property Services,Operational Furniture & Equip,4012,PO raised on wrong ac to force through as per instructions and NAME REDACTED to cancel PO,12/07/2017,0000433055,"1,284.00",Revenue,INITIAL WASHROOM HYGIENE,00024811
South Ribble Council,http://statistics.data.gov.uk/doc/local-authority/30UN,Information Services,Peripherals,4247,"Microsoft SAM Baseline Consultancy, Reporting and Mitigation,  Recommendations using PDQ, as per quote",14/07/2017,0000433025,"6,250.00",Revenue,INSIGHT UK,00120744
South Ribble Council,http://statistics.data.gov.uk/doc/local-authority/30UN,Neighbourhood Admin & Support,Materials General,4040,QC10 - QUICK SET CONCRETE,14/07/2017,0000433351,"1,228.64",Revenue,INSTARMAC GROUP PLC,00024905
South Ribble Council,http://statistics.data.gov.uk/doc/local-authority/30UN,Development Enterprise & Comm Mgnt,Other Misc,4851,Full page colour advert (inside front page) in Primary Times  Including additional editorial (200 words) and 2 paragraphs ,12/07/2017,0000433204,800.00,Revenue,It`s Manchester Limited t/as Primary Times,132270
South Ribble Council,http://statistics.data.gov.uk/doc/local-authority/30UN,Development Enterprise & Comm Mgnt,Other Misc,4851,"Installation, removal & maintenance for bunting on street lamps for Leyland Festival 2017  @ 1250 + VAT",12/07/2017,0000433170,"1,396.75",Revenue,J M Services Northwest,132280
South Ribble Council,http://statistics.data.gov.uk/doc/local-authority/30UN,Development Enterprise & Comm Mgnt,Other Misc,4851,Tennis Coaching in various primary schools June  2017,14/07/2017,0000433340,900.00,Revenue,Jacqueline Lowe,132083
South Ribble Council,http://statistics.data.gov.uk/doc/local-authority/30UN,Planning,Advertising,4841,Press notices for planning applications 2017/18,12/07/2017,0000433097,648.00,Revenue,JOHNSTON PUBLISHING (NORTH WEST),00011345
South Ribble Council,http://statistics.data.gov.uk/doc/local-authority/30UN,Planning,Advertising,4841,Press notices for planning applications 2017/18,19/07/2017,0000433264,513.00,Revenue,JOHNSTON PUBLISHING (NORTH WEST),00011345
South Ribble Council,http://statistics.data.gov.uk/doc/local-authority/30UN,Planning,Advertising,4841,Press notices for planning applications 2017/18,19/07/2017,0000433265,594.00,Revenue,JOHNSTON PUBLISHING (NORTH WEST),00011345
South Ribble Council,http://statistics.data.gov.uk/doc/local-authority/30UN,Area 1 - Penwortham Western Parishes,External Contractors Charges,4570,MOWING AND LITTER PICKING - LONGTON BY-PASS,28/07/2017,0000433649,"1,500.00",Revenue,KAYS TRAFFIC MANAGEMENT LTD,00072342
South Ribble Council,http://statistics.data.gov.uk/doc/local-authority/30UN,Area 1 - Penwortham Western Parishes,External Contractors Charges,4570,MOWING AND LITTER PICKING - LONGTON BYPASS,28/07/2017,0000433649,"1,500.00",Revenue,KAYS TRAFFIC MANAGEMENT LTD,00072342
South Ribble Council,http://statistics.data.gov.uk/doc/local-authority/30UN,Planning,Professional Fees,4510,Service level Agreement 2016-2017,14/07/2017,0000433348,312.50,Revenue,Lancashire Archaeological Advisory Service,132007
South Ribble Council,http://statistics.data.gov.uk/doc/local-authority/30UN,Planning,Professional Fees,4510,Service level Agreement 2016-2017,19/07/2017,0000433481,468.75,Revenue,Lancashire Archaeological Advisory Service,132007
South Ribble Council,http://statistics.data.gov.uk/doc/local-authority/30UN,Area 2 - Waste Transport/Eastern & Central Teams,External Contractors Charges,4570,SPEC REPAIR - JFC8709 -YP11CFM - PD,12/07/2017,0000433269,467.04,Revenue,Lancashire Waste Services Limited,131510
South Ribble Council,http://statistics.data.gov.uk/doc/local-authority/30UN,Housing,Cap Grant- Improve Grants,C570,Supply and Install stair lift at ADDRESS REDACTED. As per your quote of - 1567.00,19/07/2017,0000433452,"1,567.00",Revenue,LANCS COUNTY COUNCIL,00041645
South Ribble Council,http://statistics.data.gov.uk/doc/local-authority/30UN,Area 1 - Penwortham Western Parishes,Professional Fees,4516,BACK OFFICE PROCESSING - APRIL TO JUNE 2017,28/07/2017,0000433653,"1,310.75",Revenue,LANCS COUNTY COUNCIL,00041645
South Ribble Council,http://statistics.data.gov.uk/doc/local-authority/30UN,Area 3 - Parks/Leyland East West,Capital Expenditure,C230,PUMPS & PIPES TO CLEAR FLOODED TRENCHES INSTALLATION OF HEAVY DUTY MESH FENCE TO BOWLING GREEN,14/07/2017,0000433281,890.00,Revenue,LANDSCAPE ENGINEERING LIMITED,130416
South Ribble Council,http://statistics.data.gov.uk/doc/local-authority/30UN,Area 3 - Parks/Leyland East West,Capital Expenditure,C230,PERIMETER SECTIONS,14/07/2017,0000433281,630.00,Revenue,LANDSCAPE ENGINEERING LIMITED,130416
South Ribble Council,http://statistics.data.gov.uk/doc/local-authority/30UN,Area 1 - Penwortham Western Parishes,Materials General,4040,Have You Paid and Displayed 400 x 430mm,14/07/2017,0000433222,127.26,Revenue,LCC SIGN SHOP,00027096
South Ribble Council,http://statistics.data.gov.uk/doc/local-authority/30UN,Area 1 - Penwortham Western Parishes,Materials General,4040,This Is Pay & Display Car Park 500 x 890mm,14/07/2017,0000433222,188.91,Revenue,LCC SIGN SHOP,00027096
South Ribble Council,http://statistics.data.gov.uk/doc/local-authority/30UN,Area 1 - Penwortham Western Parishes,Materials General,4040,Worden Park Car Park Regulations 750 x 1485mm,14/07/2017,0000433222,333.90,Revenue,LCC SIGN SHOP,00027096
South Ribble Council,http://statistics.data.gov.uk/doc/local-authority/30UN,Area 1 - Penwortham Western Parishes,Materials General,4040,Posts including fixings,14/07/2017,0000433222,209.04,Revenue,LCC SIGN SHOP,00027096
South Ribble Council,http://statistics.data.gov.uk/doc/local-authority/30UN,Democratic Services,Other Misc,4421,Lancashire County Council Elections on Thursday 4 May 2017.  Access required from approx. 6.15am until10.15pm.,19/07/2017,0000433431,272.00,Revenue,LEYLAND METHODIST CHURCH,130071
South Ribble Council,http://statistics.data.gov.uk/doc/local-authority/30UN,HR & Communications,Training Expense-Course Fees,1406,CLLRS NAMES REDACETD ATTENDING THE LGA CONFERENCE & EXHIBITION IN BIRMINHAM 4 - 6 JULY 2017,14/07/2017,0000432955,"1,635.00",Revenue,LGA (LOCAL GOVERNMENT ASSOCIATION),00042851
South Ribble Council,http://statistics.data.gov.uk/doc/local-authority/30UN,HR & Communications,Other Misc,4851,DRIVING LICENCE CHECKS,19/07/2017,0000433098,928.00,Revenue,LICENCE BUREAU LIMITED,131943
South Ribble Council,http://statistics.data.gov.uk/doc/local-authority/30UN,Shared Assurance Services,Other Misc,4851,flood grant,07/07/2017,0000433121,"3,363.60",Revenue,NAME REDACTED,132177
South Ribble Council,http://statistics.data.gov.uk/doc/local-authority/30UN,Housing,Cap Grant- Improve Grants,C570,DFG WORK AT ADDRESS REDACTED,19/07/2017,0000433381,"10,000.00",Revenue,LTL CONSTRUCTION & MAINTENANCE LTD,131406
South Ribble Council,http://statistics.data.gov.uk/doc/local-authority/30UN,Neighbourhood Admin & Support,Operational Furniture & Equip,4010,PADLOCKS  - SQUIRE 660 TO PASS KEY 10 ,05/07/2017,0000432972,295.81,Revenue,M A C BUILDING PRODUCTS LTD,00051059
South Ribble Council,http://statistics.data.gov.uk/doc/local-authority/30UN,Neighbourhood Admin & Support,Operational Furniture & Equip,4010,PADLOCKS  - SQUIRE 660 TO PASS KEY 10 ,26/07/2017,0000433454,319.46,Revenue,M A C BUILDING PRODUCTS LTD,00051059
South Ribble Council,http://statistics.data.gov.uk/doc/local-authority/30UN,Area 2 - Waste Transport/Eastern & Central Teams,External Contractors Charges,4570,RECOVERY - VK09AHJ - JFC9072,28/07/2017,0000433622,262.00,Revenue,MILLERS OF LONGTON LTD,00028642
South Ribble Council,http://statistics.data.gov.uk/doc/local-authority/30UN,Area 2 - Waste Transport/Eastern & Central Teams,External Contractors Charges,4570,"Spec Repair PO13 UUM, JFC8937 (NAME REDACTED)",12/07/2017,0000433221,634.58,Revenue,MITCHELL POWERSYTEMS,00077282
South Ribble Council,http://statistics.data.gov.uk/doc/local-authority/30UN,Revenues Plus,Agency Fees,1121,NAME REDACTED Agency July 17,14/07/2017,0000433372,894.81,Revenue,MORGAN HUNT PUBLIC SECTOR LTD,00120401
South Ribble Council,http://statistics.data.gov.uk/doc/local-authority/30UN,Area 1 - Penwortham Western Parishes,Professional Fees,4521,PROVISION OF STRAY DOG SERVICE - TO COVER JUNE 2017,14/07/2017,0000433239,426.54,Revenue,MORNINGSIDE KENNELS,00067755
South Ribble Council,http://statistics.data.gov.uk/doc/local-authority/30UN,Environmental Health,Licence Fees,488B,2 QTR,14/07/2017,0000433218,"1,375.00",Revenue,MOSS SIDE COMMUNITY FORUM,00098724
South Ribble Council,http://statistics.data.gov.uk/doc/local-authority/30UN,Legal,Balance Sheet,0030,DISPOSAL OF ALLOTMENT SITE  Advice - 5 hours on 5th May 2017  Further advice - 1 hour on 18th May 2017,19/07/2017,0000433217,750.00,Revenue,NAME REDACTED,131493
South Ribble Council,http://statistics.data.gov.uk/doc/local-authority/30UN,Shared Assurance Services,Other Misc,4851,flood grant,26/07/2017,0000433522,"3,099.60",Revenue,NAME REDACTED,131774
South Ribble Council,http://statistics.data.gov.uk/doc/local-authority/30UN,Shared Assurance Services,Other Misc,4851,flood grant,07/07/2017,0000432894,"4,706.00",Revenue,NAME REDACTED,131934
South Ribble Council,http://statistics.data.gov.uk/doc/local-authority/30UN,Shared Assurance Services,Other Misc,4851,flood grant,28/07/2017,0000433595,"4,706.00",Revenue,NAME REDACTED,132307
South Ribble Council,http://statistics.data.gov.uk/doc/local-authority/30UN,Shared Assurance Services,Other Misc,4851,grant for flood,26/07/2017,0000433572,"4,077.00",Revenue,NAME REDACTED,131751
South Ribble Council,http://statistics.data.gov.uk/doc/local-authority/30UN,Area 2 - Waste Transport/Eastern & Central Teams,External Contractors Charges,4570,LOLER INSPECTION - JFC6414 - PE11KBP,05/07/2017,0000433041,55.50,Revenue,MUNICIPAL VEHICLE INSPECTION SERVICES LT,00096645
South Ribble Council,http://statistics.data.gov.uk/doc/local-authority/30UN,Area 2 - Waste Transport/Eastern & Central Teams,External Contractors Charges,4570,LOLER INSPECTION - JFC6415 - PN58WFZ,05/07/2017,0000433041,55.50,Revenue,MUNICIPAL VEHICLE INSPECTION SERVICES LT,00096645
South Ribble Council,http://statistics.data.gov.uk/doc/local-authority/30UN,Area 2 - Waste Transport/Eastern & Central Teams,External Contractors Charges,4570,LOLER INSPECTION - JFC6416 - MV12SUA,05/07/2017,0000433041,55.50,Revenue,MUNICIPAL VEHICLE INSPECTION SERVICES LT,00096645
South Ribble Council,http://statistics.data.gov.uk/doc/local-authority/30UN,Area 2 - Waste Transport/Eastern & Central Teams,External Contractors Charges,4570,LOLER INSPECTION - JFC6417 - MV12SUF,05/07/2017,0000433041,55.50,Revenue,MUNICIPAL VEHICLE INSPECTION SERVICES LT,00096645
South Ribble Council,http://statistics.data.gov.uk/doc/local-authority/30UN,Area 2 - Waste Transport/Eastern & Central Teams,External Contractors Charges,4570,LOLER INSPECTION - JFC6418 - MV12SWN,05/07/2017,0000433041,55.50,Revenue,MUNICIPAL VEHICLE INSPECTION SERVICES LT,00096645
South Ribble Council,http://statistics.data.gov.uk/doc/local-authority/30UN,Area 2 - Waste Transport/Eastern & Central Teams,External Contractors Charges,4570,LOLER INSPECTION - JFC6419 - MH04GSZ,05/07/2017,0000433041,55.50,Revenue,MUNICIPAL VEHICLE INSPECTION SERVICES LT,00096645
South Ribble Council,http://statistics.data.gov.uk/doc/local-authority/30UN,Area 2 - Waste Transport/Eastern & Central Teams,External Contractors Charges,4570,LOLER INSPECTION - JFC6420 - FLT01,05/07/2017,0000433041,55.50,Revenue,MUNICIPAL VEHICLE INSPECTION SERVICES LT,00096645
South Ribble Council,http://statistics.data.gov.uk/doc/local-authority/30UN,Information Services,Peripherals,4247,CT25664AC667   Crucial 2GB DDR2 SODIMM For Dell D630,28/07/2017,0000433602,202.50,Revenue,MYPREMIER LTD,130091
South Ribble Council,http://statistics.data.gov.uk/doc/local-authority/30UN,Information Services,Peripherals,4247,PEXUSB3S25  Startech 2 Port PCI Express (PCle) Superspeed USB 3.0 Adapter with UASP-LP4 power,28/07/2017,0000433602,19.75,Revenue,MYPREMIER LTD,130091
South Ribble Council,http://statistics.data.gov.uk/doc/local-authority/30UN,Information Services,Peripherals,4247,CT2KIT25664AC667 Crucial 4GB Kit (2GBx 2) DDR2-667 SODIMM for DELL  D630,28/07/2017,0000433602,44.94,Revenue,MYPREMIER LTD,130091
South Ribble Council,http://statistics.data.gov.uk/doc/local-authority/30UN,Information Services,Peripherals,4247,Delivery,28/07/2017,0000433602,10.00,Revenue,MYPREMIER LTD,130091
South Ribble Council,http://statistics.data.gov.uk/doc/local-authority/30UN,Area 2 - Waste Transport/Eastern & Central Teams,External Contractors Charges,4570,STEAM CLEAN - VO65KRE - JFC8635 - PD,05/07/2017,0000433118,65.00,Revenue,NAYLORS TRANSPORT (LEYLAND) ltd,00114828
South Ribble Council,http://statistics.data.gov.uk/doc/local-authority/30UN,Area 2 - Waste Transport/Eastern & Central Teams,External Contractors Charges,4570,STEAM CLEAN - NX58FJZ - JFC8636 - PD,05/07/2017,0000433118,65.00,Revenue,NAYLORS TRANSPORT (LEYLAND) ltd,00114828
South Ribble Council,http://statistics.data.gov.uk/doc/local-authority/30UN,Area 2 - Waste Transport/Eastern & Central Teams,External Contractors Charges,4570,STEAM CLEAN- PO13UUM - JFC8637 - PD,05/07/2017,0000433118,65.00,Revenue,NAYLORS TRANSPORT (LEYLAND) ltd,00114828
South Ribble Council,http://statistics.data.gov.uk/doc/local-authority/30UN,Area 2 - Waste Transport/Eastern & Central Teams,External Contractors Charges,4570,STEAM CLEAN - YP11CFM - JFC8638 - PD,05/07/2017,0000433118,65.00,Revenue,NAYLORS TRANSPORT (LEYLAND) ltd,00114828
South Ribble Council,http://statistics.data.gov.uk/doc/local-authority/30UN,Area 2 - Waste Transport/Eastern & Central Teams,External Contractors Charges,4570,STEAM CLEAN - PJ62UCH - JFC8640 - PD,05/07/2017,0000433118,65.00,Revenue,NAYLORS TRANSPORT (LEYLAND) ltd,00114828
South Ribble Council,http://statistics.data.gov.uk/doc/local-authority/30UN,Area 2 - Waste Transport/Eastern & Central Teams,External Contractors Charges,4570,STEAM CLEAN - MX04YNL - JFC8641 - PD,05/07/2017,0000433118,65.00,Revenue,NAYLORS TRANSPORT (LEYLAND) ltd,00114828
South Ribble Council,http://statistics.data.gov.uk/doc/local-authority/30UN,Area 2 - Waste Transport/Eastern & Central Teams,External Contractors Charges,4570,STEAM CLEAN -RV14DTZ - JFC8642 - PD,05/07/2017,0000433118,65.00,Revenue,NAYLORS TRANSPORT (LEYLAND) ltd,00114828
South Ribble Council,http://statistics.data.gov.uk/doc/local-authority/30UN,Area 2 - Waste Transport/Eastern & Central Teams,External Contractors Charges,4570,STEAM CLEAN - VO65KRF - JFC8643 - PD,05/07/2017,0000433118,75.00,Revenue,NAYLORS TRANSPORT (LEYLAND) ltd,00114828
South Ribble Council,http://statistics.data.gov.uk/doc/local-authority/30UN,Environmental Health,Contractors Charges 5,5310,Funeral for the late NAME REDACTED as per NAME REDACTED,26/07/2017,0000433531,"1,750.00",Revenue,NEAL BUCKLEY,130840
South Ribble Council,http://statistics.data.gov.uk/doc/local-authority/30UN,Property Services,Client Internal Charges,4590,2017 / 2018 fees for the front end loader weekly exchange at Leyland Market,12/07/2017,0000433297,466.40,Revenue,NEALES WASTE MANAGEMENT,130129
South Ribble Council,http://statistics.data.gov.uk/doc/local-authority/30UN,Development Enterprise & Comm Mgnt,Operational Furniture & Equip,4010,250 MOGO INTERNAL PLATE DOUBLE SIDED WITH GLO 1 SIDE - 5.78 1445.250 MOGO INTERNAL PLATE DOUBLE SIDED,07/07/2017,0000432842,"4,154.90",Revenue,NEWAUTO LTD T/A MOGO (UK),00081566
South Ribble Council,http://statistics.data.gov.uk/doc/local-authority/30UN,Regeneration,Capital Expenditure,C230,Planting evergreen screen,19/07/2017,0000433201,551.40,Revenue,NEWGATE NURSERIES,00069591
South Ribble Council,http://statistics.data.gov.uk/doc/local-authority/30UN,Development Enterprise & Comm Mgnt,Other Misc,4851,Bikeability delivery day Bikeability L1/2 course for New Longton All Saints` Primary School,26/07/2017,0000433555,"1,050.00",Revenue,NIGEL COLE,131002
South Ribble Council,http://statistics.data.gov.uk/doc/local-authority/30UN,Development Enterprise & Comm Mgnt,Other Misc,4851,16 T6 Toilets 2 T7 Disabled Toilets  Drop off Friday 16th June and pick up after 6pm Saturday 17th June,07/07/2017,0000433029,"1,000.00",Revenue,Northwest Portable Toilet Company Ltd,132282
South Ribble Council,http://statistics.data.gov.uk/doc/local-authority/30UN,Area 1 - Penwortham Western Parishes,Professional Fees,4514,DEPLOYMENT OF OFFICERS - JUNE 2017,14/07/2017,0000433158,"1,592.22",Revenue,NSL LTD,00116868
South Ribble Council,http://statistics.data.gov.uk/doc/local-authority/30UN,Area 1 - Penwortham Western Parishes,Other Misc,4855,CASH COLLECTION AND RING-GO CHARGES - JUNE 2017,14/07/2017,0000433158,396.07,Revenue,NSL LTD,00116868
South Ribble Council,http://statistics.data.gov.uk/doc/local-authority/30UN,Shared Financial Services,Balance Sheet,0140,REFUND,05/07/2017,0000432924,"1,400.00",Revenue,OSTEOCARE (EAST MIDLANDS) LTD,130874
South Ribble Council,http://statistics.data.gov.uk/doc/local-authority/30UN,HR & Communications,Training Expense-Course Fees,1408,OSTEOPAROSIS HEALTH SCREENINGS ON 21ST JUNE 2017 FULL DAY IN OAKS ROOM,26/07/2017,0000433480,720.00,Revenue,OSTEOCARE (EAST MIDLANDS) LTD,130874
South Ribble Council,http://statistics.data.gov.uk/doc/local-authority/30UN,Area 1 - Penwortham Western Parishes,Operational Furniture & Equip,4013,Call out to repair P&D Machine No 11 at Leyland Railway Station on 2.2.17. Replaced mainboard and ribbon cables,05/07/2017,0000433053,962.00,Revenue,PARKEON LTD,00082918
South Ribble Council,http://statistics.data.gov.uk/doc/local-authority/30UN,Area 1 - Penwortham Western Parishes,Operational Furniture & Equip,4013,Call out to repair fault on P&D Machine No 5 at Churchill Way on 16.3.17,05/07/2017,0000433053,171.50,Revenue,PARKEON LTD,00082918
South Ribble Council,http://statistics.data.gov.uk/doc/local-authority/30UN,Area 1 - Penwortham Western Parishes,Operational Furniture & Equip,4013,Call out to repair fault on P&D Machine No 11 Leyland Railway Station on  13.4.17,05/07/2017,0000433053,171.50,Revenue,PARKEON LTD,00082918
South Ribble Council,http://statistics.data.gov.uk/doc/local-authority/30UN,Area 1 - Penwortham Western Parishes,Operational Furniture & Equip,4013,Call out to repair fault on P&D Machine No 11 at Leyland Railway Station on 20.4.17 - replaced display,05/07/2017,0000433053,330.00,Revenue,PARKEON LTD,00082918
South Ribble Council,http://statistics.data.gov.uk/doc/local-authority/30UN,Information Services,Capital Expenditure,C234,"HP 508X High Yield Original LaserJet Toner Cartridge - Black, Cyan, Yellow & Magenta",05/07/2017,0000433147,991.76,Revenue,PENKETHS LTD T/A THOMAS COMPUTER SUPPLIE,00037057
South Ribble Council,http://statistics.data.gov.uk/doc/local-authority/30UN,Regeneration,External Contractors Charges,4575,to be cancelled with credit 257,26/07/2017,0000432727,"1,270.00",Revenue,Penningtons Catering Ltd,131684
South Ribble Council,http://statistics.data.gov.uk/doc/local-authority/30UN,Regeneration,Other Misc,4861,"Buffet for 120 Delivered to Civic Centre for 12 noon, 25th May 2017, as discussed with NAME REDACTED",26/07/2017,0000432979,720.00,Revenue,Penningtons Catering Ltd,131684
South Ribble Council,http://statistics.data.gov.uk/doc/local-authority/30UN,Revenues Plus,External Contractors Charges,4575,Capita Benefits Northern User Group Buffet,19/07/2017,0000433362,270.00,Revenue,Penningtons Catering Ltd,131684
South Ribble Council,http://statistics.data.gov.uk/doc/local-authority/30UN,Property Services,External Contractors Charges,4575,To supply hot meals @ 6.20 per head for 55 on 19th July 2017 @ 16.30 to SRBC,26/07/2017,0000433485,330.00,Revenue,Penningtons Catering Ltd,131684
South Ribble Council,http://statistics.data.gov.uk/doc/local-authority/30UN,Environmental Health,Professional Fees,4522,gov fee,19/07/2017,0000433309,264.00,Revenue,Personnel Checks,131483
South Ribble Council,http://statistics.data.gov.uk/doc/local-authority/30UN,Environmental Health,Professional Fees,4522,admin fee,19/07/2017,0000433309,79.98,Revenue,Personnel Checks,131483
South Ribble Council,http://statistics.data.gov.uk/doc/local-authority/30UN,Neighbourhood Admin & Support,Vehicle Running Costs,3132,FUEL FOR MAY 2017,14/07/2017,0000433177,325.48,Revenue,PETROMEX MILLBROOK WAY SERVICE STATION,00062572
South Ribble Council,http://statistics.data.gov.uk/doc/local-authority/30UN,HR & Communications,Employee Related Insurance,1819,GROUP LIFE ASSURANCE SCHEME RENEWAL  SCHEME NUMBER - 8519 COVERING 2017/2018,28/07/2017,0000432951,"6,084.42",Revenue,PHOENIX LIFE LTD,00031532
South Ribble Council,http://statistics.data.gov.uk/doc/local-authority/30UN,Property Services,Operational Furniture & Equip,4012,"2017/ 2018 contract for the provision of sanitary services at Moss Side Depot, Bison Place, Leyland",12/07/2017,0000433050,405.60,Revenue,PHS GROUP PLC,00031309
South Ribble Council,http://statistics.data.gov.uk/doc/local-authority/30UN,Property Services,Operational Furniture & Equip,4012,2017/ 2018 contract for the provision of sanitary services at the Civic Centre,12/07/2017,0000433051,915.03,Revenue,PHS GROUP PLC,00031309
South Ribble Council,http://statistics.data.gov.uk/doc/local-authority/30UN,Area 3 - Parks/Leyland East West,Other Misc,4861,Please supply 1x FG01.5 A Side Goal,26/07/2017,0000433487,319.50,Revenue,PLAY & LEISURE LTD,00032188
South Ribble Council,http://statistics.data.gov.uk/doc/local-authority/30UN,Area 3 - Parks/Leyland East West,Other Misc,4861,Delivery,26/07/2017,0000433487,150.00,Revenue,PLAY & LEISURE LTD,00032188
South Ribble Council,http://statistics.data.gov.uk/doc/local-authority/30UN,Area 2 - Waste Transport/Eastern & Central Teams,Vehicle Running Costs,3137,Vehicle Running Costs,07/07/2017,0000433213,240.00,Revenue,POST OFFICE LTD,00031354
South Ribble Council,http://statistics.data.gov.uk/doc/local-authority/30UN,Area 2 - Waste Transport/Eastern & Central Teams,Vehicle Running Costs,3137,Vehicle Running Costs,07/07/2017,0000433213,650.00,Revenue,POST OFFICE LTD,00031354
South Ribble Council,http://statistics.data.gov.uk/doc/local-authority/30UN,Area 2 - Waste Transport/Eastern & Central Teams,Vehicle Running Costs,3137,Vehicle Running Costs,07/07/2017,0000433213,240.00,Revenue,POST OFFICE LTD,00031354
South Ribble Council,http://statistics.data.gov.uk/doc/local-authority/30UN,Area 2 - Waste Transport/Eastern & Central Teams,Vehicle Running Costs,3137,Vehicle Running Costs,07/07/2017,0000433213,240.00,Revenue,POST OFFICE LTD,00031354
South Ribble Council,http://statistics.data.gov.uk/doc/local-authority/30UN,Area 2 - Waste Transport/Eastern & Central Teams,Vehicle Running Costs,3137,Vehicle Running Costs,07/07/2017,0000433213,240.00,Revenue,POST OFFICE LTD,00031354
South Ribble Council,http://statistics.data.gov.uk/doc/local-authority/30UN,Information Services,Stationery,4133,"80,000 sheets Evolution A4 80gm 5000 sheets Evolution Everyday A3 80gm 15000 sheets Evolution Business A4 90gm",05/07/2017,0000433099,512.37,Revenue,PREMIER PAPER GROUP LTD,00022606
South Ribble Council,http://statistics.data.gov.uk/doc/local-authority/30UN,Area 2 - Waste Transport/Eastern & Central Teams,Materials General,4040,TYRE REPAIRS - TR174 - ,12/07/2017,0000433203,446.05,Revenue,PRESTON TYRE SPECIALISTS,00109516
South Ribble Council,http://statistics.data.gov.uk/doc/local-authority/30UN,Area 2 - Waste Transport/Eastern & Central Teams,External Contractors Charges,4570,10 TYRES FOR REPAIR - TR175,28/07/2017,0000433600,680.60,Revenue,PRESTON TYRE SPECIALISTS,00109516
South Ribble Council,http://statistics.data.gov.uk/doc/local-authority/30UN,Area 2 - Waste Transport/Eastern & Central Teams,Agency Fees,1121,TEMPORARY FITTER - COVER FROM TUESDAY 4TH JULY FOR 4 WEEKS 19.23 PER HOUR X 40 HOURS PER WEEK,21/07/2017,0000433347,619.84,Revenue,Proactive Personnel Limited,131697
South Ribble Council,http://statistics.data.gov.uk/doc/local-authority/30UN,Area 2 - Waste Transport/Eastern & Central Teams,Agency Fees,1121,TEMPORARY FITTER - COVER FROM TUESDAY 4TH JULY FOR 4 WEEKS 19.23 PER HOUR X 40 HOURS PER WEEK,28/07/2017,0000433530,769.20,Revenue,Proactive Personnel Limited,131697
South Ribble Council,http://statistics.data.gov.uk/doc/local-authority/30UN,Area 3 - Parks/Leyland East West,Contract Hire & Lease Costs,3212,3 ton digger (C/W 3 buckets) 3 days  20/06/17-22/06/17 Auger attachment with 12� auger 2 days-   21/06/17-22/06/17 Delivered,19/07/2017,0000433371,390.00,Revenue,Readyplant Limited,131535
South Ribble Council,http://statistics.data.gov.uk/doc/local-authority/30UN,Area 3 - Parks/Leyland East West,Contract Hire & Lease Costs,3212,fuel,19/07/2017,0000433371,5.40,Revenue,Readyplant Limited,131535
South Ribble Council,http://statistics.data.gov.uk/doc/local-authority/30UN,Area 2 - Waste Transport/Eastern & Central Teams,External Contractors Charges,4570,"Spec Repair, RV14 DTZ, JFC8686. (NAME REDACTED)",12/07/2017,0000432739,331.00,Revenue,Red Forge Limited,131499
South Ribble Council,http://statistics.data.gov.uk/doc/local-authority/30UN,Area 1 - Penwortham Western Parishes,Grounds Maintanance,2040,To rebuild wall on King Street Car Park,14/07/2017,0000432949,600.00,Revenue,RED ROSE BUILDING MAINTENANCE,00085410
South Ribble Council,http://statistics.data.gov.uk/doc/local-authority/30UN,Area 1 - Penwortham Western Parishes,Grounds Maintanance,2040,materials,14/07/2017,0000432949,960.00,Revenue,RED ROSE BUILDING MAINTENANCE,00085410
South Ribble Council,http://statistics.data.gov.uk/doc/local-authority/30UN,Property Services,Rep & Maint Premises,2020,Please attend Worden Park Cross Road Toilets Gents reported by SRBC operative as being blocked,12/07/2017,0000433286,260.00,Revenue,RED ROSE BUILDING MAINTENANCE,00085410
South Ribble Council,http://statistics.data.gov.uk/doc/local-authority/30UN,Area 3 - Parks/Leyland East West,Capital Expenditure,C234,Replacement of Security Screen and Associated Works at Bow Brook Road Headwall Leyland,14/07/2017,0000433189,"4,380.00",Revenue,Reid Construction & Civil Engineering Ltd,131544
South Ribble Council,http://statistics.data.gov.uk/doc/local-authority/30UN,Area 3 - Parks/Leyland East West,Capital Expenditure,C234,materials & plant,14/07/2017,0000433189,"10,488.00",Revenue,Reid Construction & Civil Engineering Ltd,131544
South Ribble Council,http://statistics.data.gov.uk/doc/local-authority/30UN,Area 3 - Parks/Leyland East West,Grounds Maint Cntrctrs Chgs,4657,"labourCCTV JETTING, EXCAVATION & REPAIR AS REQUIRED PIPE DISCHARGING INTO SOUTH SIDE OF FISH POND",28/07/2017,0000433190,500.00,Revenue,Reid Construction & Civil Engineering Ltd,131544
South Ribble Council,http://statistics.data.gov.uk/doc/local-authority/30UN,Area 3 - Parks/Leyland East West,Grounds Maint Cntrctrs Chgs,4657,CCTV & PLANT,28/07/2017,0000433190,870.00,Revenue,Reid Construction & Civil Engineering Ltd,131544
South Ribble Council,http://statistics.data.gov.uk/doc/local-authority/30UN,HR & Communications,Training Expense-Course Fees,1402,6 SEMINAR OR WEBINAR PLACES AND ACCESS TO SEMINAR REFERENCE MATERIAL,14/07/2017,0000432774,"1,293.00",Revenue,RICARDO-AEA LIMITED,130794
South Ribble Council,http://statistics.data.gov.uk/doc/local-authority/30UN,Area 1 - Penwortham Western Parishes,Materials General,4040,1 X FINALE (@168.50),14/07/2017,0000433352,168.50,Revenue,RIGBY TAYLOR LTD,00033145
South Ribble Council,http://statistics.data.gov.uk/doc/local-authority/30UN,Area 1 - Penwortham Western Parishes,Materials General,4040,30 LTRS (6 X 5 ltr) TRUSTEE AMENITY (@27.00/LITRE),14/07/2017,0000433352,162.00,Revenue,RIGBY TAYLOR LTD,00033145
South Ribble Council,http://statistics.data.gov.uk/doc/local-authority/30UN,Area 1 - Penwortham Western Parishes,Materials General,4040,delivery,14/07/2017,0000433352,10.75,Revenue,RIGBY TAYLOR LTD,00033145
South Ribble Council,http://statistics.data.gov.uk/doc/local-authority/30UN,Development Enterprise & Comm Mgnt,Other Misc,4851,Management of Leyland Festival Parade on 17th June 2017 Includes cost of Marshalling the Parade,26/07/2017,0000433488,"4,300.00",Revenue,Road Safety Services LTD,131989
South Ribble Council,http://statistics.data.gov.uk/doc/local-authority/30UN,Democratic Services,Other Misc,4422,Parliamentary Elections postal costs Ref:9054609570,12/07/2017,0000432815,"1,023.68",Revenue,ROYAL MAIL GROUP PLC,00033543
South Ribble Council,http://statistics.data.gov.uk/doc/local-authority/30UN,Democratic Services,Other Misc,4422,POSTAGE COSTS - COUNTY COUNCIL ELECTIONS,14/07/2017,0000433288,"1,348.60",Revenue,ROYAL MAIL GROUP PLC,00033543
South Ribble Council,http://statistics.data.gov.uk/doc/local-authority/30UN,Democratic Services,Other Misc,4422,POSTAGE COSTS - PARLIAMENTARY ELECTION,14/07/2017,0000433288,782.93,Revenue,ROYAL MAIL GROUP PLC,00033543
South Ribble Council,http://statistics.data.gov.uk/doc/local-authority/30UN,Democratic Services,Other Misc,4422,Parliamentary elections  Ref:9054725370,12/07/2017,0000433302,649.74,Revenue,ROYAL MAIL GROUP PLC,00033543
South Ribble Council,http://statistics.data.gov.uk/doc/local-authority/30UN,Democratic Services,Other Misc,4422,zero items,12/07/2017,0000433302,19.53,Revenue,ROYAL MAIL GROUP PLC,00033543
South Ribble Council,http://statistics.data.gov.uk/doc/local-authority/30UN,Democratic Services,Other Misc,4422,exempt items,12/07/2017,0000433302,23.52,Revenue,ROYAL MAIL GROUP PLC,00033543
South Ribble Council,http://statistics.data.gov.uk/doc/local-authority/30UN,Democratic Services,Other Misc,4422,Docket No:5064841357 - 24/04/17 - 5.88 Docket No:5064903719 - 25/04/17 - 5.40 Docket No.1258369652 - 24/04/17 - 17.49,12/07/2017,0000433314,128.12,Revenue,ROYAL MAIL GROUP PLC,00033543
South Ribble Council,http://statistics.data.gov.uk/doc/local-authority/30UN,Democratic Services,Other Misc,4422,Docket No:5065369880 - 16/05/17 - 136.71 (1.470each) Docket No:5065369880 - 16/05/17 - 52.08 (2.170each) Docket No,12/07/2017,0000433314,"6,951.71",Revenue,ROYAL MAIL GROUP PLC,00033543
South Ribble Council,http://statistics.data.gov.uk/doc/local-authority/30UN,Democratic Services,Other Misc,4422,exempt items,12/07/2017,0000433314,5.88,Revenue,ROYAL MAIL GROUP PLC,00033543
South Ribble Council,http://statistics.data.gov.uk/doc/local-authority/30UN,Democratic Services,Other Misc,4422,zero rated items,12/07/2017,0000433314,52.08,Revenue,ROYAL MAIL GROUP PLC,00033543
South Ribble Council,http://statistics.data.gov.uk/doc/local-authority/30UN,Democratic Services,Other Misc,4422,exempt items,12/07/2017,0000433314,136.71,Revenue,ROYAL MAIL GROUP PLC,00033543
South Ribble Council,http://statistics.data.gov.uk/doc/local-authority/30UN,Property Services,Energy Costs,2303,owed back as per reconciliation,12/07/2017,0000433061,796.58,Revenue,SCOTTISH HYDRO ELECTRIC,130051
South Ribble Council,http://statistics.data.gov.uk/doc/local-authority/30UN,Property Services,Energy Costs,2303,2/4/17 to 1/7/17,21/07/2017,0000433459,383.79,Revenue,SCOTTISH HYDRO ELECTRIC,130051
South Ribble Council,http://statistics.data.gov.uk/doc/local-authority/30UN,Property Services,Energy Costs,2307,CCL,21/07/2017,0000433459,18.03,Revenue,SCOTTISH HYDRO ELECTRIC,130051
South Ribble Council,http://statistics.data.gov.uk/doc/local-authority/30UN,Property Services,Energy Costs,2303,1/6/17 to 30/6/17,21/07/2017,0000433467,317.71,Revenue,SCOTTISH HYDRO ELECTRIC,130051
South Ribble Council,http://statistics.data.gov.uk/doc/local-authority/30UN,Property Services,Energy Costs,2307,CCL,21/07/2017,0000433467,15.40,Revenue,SCOTTISH HYDRO ELECTRIC,130051
South Ribble Council,http://statistics.data.gov.uk/doc/local-authority/30UN,Property Services,Energy Costs,2303,1/6/17 to 30/6/17,21/07/2017,0000433469,"2,934.83",Revenue,SCOTTISH HYDRO ELECTRIC,130051
South Ribble Council,http://statistics.data.gov.uk/doc/local-authority/30UN,Property Services,Energy Costs,2307,CCL,21/07/2017,0000433469,155.91,Revenue,SCOTTISH HYDRO ELECTRIC,130051
South Ribble Council,http://statistics.data.gov.uk/doc/local-authority/30UN,Property Services,Energy Costs,2303,12/4/17 to 11/7/17,21/07/2017,0000433476,280.99,Revenue,SCOTTISH HYDRO ELECTRIC,130051
South Ribble Council,http://statistics.data.gov.uk/doc/local-authority/30UN,Property Services,Energy Costs,2303,1/6/17 to 30/6/17,21/07/2017,0000433477,"1,611.50",Revenue,SCOTTISH HYDRO ELECTRIC,130051
South Ribble Council,http://statistics.data.gov.uk/doc/local-authority/30UN,Property Services,Energy Costs,2307,CCL,21/07/2017,0000433477,88.05,Revenue,SCOTTISH HYDRO ELECTRIC,130051
South Ribble Council,http://statistics.data.gov.uk/doc/local-authority/30UN,Property Services,Energy Costs,2303,1/6/17 to 30/6/17,21/07/2017,0000433478,974.79,Revenue,SCOTTISH HYDRO ELECTRIC,130051
South Ribble Council,http://statistics.data.gov.uk/doc/local-authority/30UN,Property Services,Energy Costs,2303,CCL,21/07/2017,0000433478,50.33,Revenue,SCOTTISH HYDRO ELECTRIC,130051
South Ribble Council,http://statistics.data.gov.uk/doc/local-authority/30UN,Area 1 - Penwortham Western Parishes,External Contractors Charges,4570,"PROVISION OF SECURITY AT WORDEN PARK (12/5, 13/5 & 14/5 - WHILST GYPSY/TRAVELLERS ON SITE)",14/07/2017,0000432668,656.78,Revenue,SECTOR SECURITY SERVICES LTD,00036689
South Ribble Council,http://statistics.data.gov.uk/doc/local-authority/30UN,Legal,Subs to Statutory Bodies,4720,North West Legal Consortium 2017/18 Subscription,05/07/2017,0000433006,500.00,Revenue,SEFTON M B COUNCIL,00117058
South Ribble Council,http://statistics.data.gov.uk/doc/local-authority/30UN,Healthy Communities,Consultancy Fees,4536,"R & M 2016/17 payable by 12 payments of 14,931.44 + VAT",07/07/2017,0000432989,"14,931.44",Revenue,SERCO LEISURE (OP) LTD,00094906
South Ribble Council,http://statistics.data.gov.uk/doc/local-authority/30UN,Information Services,Professional Fees,4520,Shredding of Confidential Waste 2017/18,05/07/2017,0000432947,252.37,Revenue,SHRED-IT LTD,00109134
South Ribble Council,http://statistics.data.gov.uk/doc/local-authority/30UN,Information Services,Professional Fees,4520,Shredding of Confidential Waste 2017/18,28/07/2017,0000433527,315.46,Revenue,SHRED-IT LTD,00109134
South Ribble Council,http://statistics.data.gov.uk/doc/local-authority/30UN,Information Services,Capital Expenditure,C234,to match off against credit note,12/07/2017,0000430569,"9,534.60",Revenue,SOFTCAT LIMITED,130963
South Ribble Council,http://statistics.data.gov.uk/doc/local-authority/30UN,Information Services,Capital Expenditure,C234,"Good Professional Services, as per quote  no. OVREEA01BLOD V1",12/07/2017,0000433237,"9,534.60",Revenue,SOFTCAT LIMITED,130963
South Ribble Council,http://statistics.data.gov.uk/doc/local-authority/30UN,Healthy Communities,Consultancy Fees,4532,"Leisure Services Fee 2016/17 (249,981.70) payable by 12 payments of 20,831.81 + VAT",07/07/2017,0000432990,"41,663.66",Revenue,SOUTH RIBBLE COMMUNITY LEISURE LTD,00094210
South Ribble Council,http://statistics.data.gov.uk/doc/local-authority/30UN,Healthy Communities,Consultancy Fees,4532,Leisure Services Fee 2017/18,12/07/2017,0000432993,"15,778.33",Revenue,SOUTH RIBBLE COMMUNITY LEISURE LTD,00094210
South Ribble Council,http://statistics.data.gov.uk/doc/local-authority/30UN,Healthy Communities,Consultancy Fees,4532,Leisure Services Fee 2017/18,12/07/2017,0000432994,"15,778.33",Revenue,SOUTH RIBBLE COMMUNITY LEISURE LTD,00094210
South Ribble Council,http://statistics.data.gov.uk/doc/local-authority/30UN,Healthy Communities,Consultancy Fees,4532,Leisure Services Fee 2017/18,12/07/2017,0000432995,"15,778.33",Revenue,SOUTH RIBBLE COMMUNITY LEISURE LTD,00094210
South Ribble Council,http://statistics.data.gov.uk/doc/local-authority/30UN,Shared Financial Services,Balance Sheet,0030,deductions,05/07/2017,0000432983,752.00,Revenue,SOUTH RIBBLE LABOUR PARTY LOCAL GOVERNM,00120663
South Ribble Council,http://statistics.data.gov.uk/doc/local-authority/30UN,Neighbourhood Admin & Support,Operational Furniture & Equip,4010,LITTER PICKER - 27242,05/07/2017,0000433017,561.00,Revenue,SPALDINGS,00070849
South Ribble Council,http://statistics.data.gov.uk/doc/local-authority/30UN,Neighbourhood Admin & Support,Operational Furniture & Equip,4010, HOE -C/W 60`` HANDLE BULLDOG PREMIER 3232/5N - 21045,05/07/2017,0000433017,77.50,Revenue,SPALDINGS,00070849
South Ribble Council,http://statistics.data.gov.uk/doc/local-authority/30UN,Neighbourhood Admin & Support,Materials General,4040,HAND WIPES (200 TUB) - WET WIPES - 30008,05/07/2017,0000433017,66.00,Revenue,SPALDINGS,00070849
South Ribble Council,http://statistics.data.gov.uk/doc/local-authority/30UN,Neighbourhood Admin & Support,Operational Furniture & Equip,4010,LOPPERS (BAHCO P16-60) - 27345,28/07/2017,0000433623,159.96,Revenue,SPALDINGS,00070849
South Ribble Council,http://statistics.data.gov.uk/doc/local-authority/30UN,Neighbourhood Admin & Support,Operational Furniture & Equip,4010,HAND SHEARS  TELESCOPIC - 27308,28/07/2017,0000433623,20.60,Revenue,SPALDINGS,00070849
South Ribble Council,http://statistics.data.gov.uk/doc/local-authority/30UN,Neighbourhood Admin & Support,Materials General,4040,HAND WIPES (200 TUB) - WET WIPES - 30008,28/07/2017,0000433623,144.00,Revenue,SPALDINGS,00070849
South Ribble Council,http://statistics.data.gov.uk/doc/local-authority/30UN,Development Enterprise & Comm Mgnt,Other Misc,4851,"5,000 leaflets on A4 paper, double sided, colour print on 130gsm silk art (or similar), folded to A5 and boxed. To be delivered",12/07/2017,0000433236,295.00,Revenue,SPRINTPRINT (PRESTON),131207
South Ribble Council,http://statistics.data.gov.uk/doc/local-authority/30UN,Democratic Services,Other Misc,4421,Use of the venue for the Parliamentary Elections on Thursday 8 June 2017.  Access required from approx. 6.15am unti 10.15pm.   ,12/07/2017,0000433326,315.00,Revenue,ST AMBROSE CHURCH HALL,00081540
South Ribble Council,http://statistics.data.gov.uk/doc/local-authority/30UN,Area 2 - Waste Transport/Eastern & Central Teams,Cap Vehicles,C440,1x  VW crafter  second hand   Luton van Reg  number PF15 HYU,26/07/2017,0000433512,"17,500.00",Revenue,STAN CAR & VAN HIRE LTD,130025
South Ribble Council,http://statistics.data.gov.uk/doc/local-authority/30UN,Development Enterprise & Comm Mgnt,Other Misc,4851,Provision of filming and editing for the South Ribble Sports Awards,26/07/2017,0000433564,"4,350.00",Revenue,STANLEY ROAD FILM AND MEDIA LTD,131214
South Ribble Council,http://statistics.data.gov.uk/doc/local-authority/30UN,Development Enterprise & Comm Mgnt,Other Misc,4851,"Truck Trail  Set up and management of Twitter, Instagram & Facebook between Feb- Sept 2017 @4,850.00",12/07/2017,0000433184,550.00,Revenue,STONE CREATE LTD,130896
South Ribble Council,http://statistics.data.gov.uk/doc/local-authority/30UN,Development Enterprise & Comm Mgnt,Other Misc,4851,PO completed in error  may consultancy,12/07/2017,0000433188,790.00,Revenue,STONE CREATE LTD,130896
South Ribble Council,http://statistics.data.gov.uk/doc/local-authority/30UN,Development Enterprise & Comm Mgnt,Other Misc,4851,Po completed in error june consultancy,12/07/2017,0000433200,420.00,Revenue,STONE CREATE LTD,130896
South Ribble Council,http://statistics.data.gov.uk/doc/local-authority/30UN,Development Enterprise & Comm Mgnt,Other Misc,4851,"School�s competition Truck � Design & build  Total costs	3,500",21/07/2017,0000433283,"3,500.00",Revenue,STONE CREATE LTD,130896
South Ribble Council,http://statistics.data.gov.uk/doc/local-authority/30UN,Development Enterprise & Comm Mgnt,Other Misc,4851,Truck Trail � Facebook Advertising Management: Activity additional to social media support already contracted  To deliver ,19/07/2017,0000433284,"1,190.00",Revenue,STONE CREATE LTD,130896
South Ribble Council,http://statistics.data.gov.uk/doc/local-authority/30UN,HR & Communications,Advertising,4848,Affordable Housing Leaflet,19/07/2017,0000433386,187.50,Revenue,STONE CREATE LTD,130896
South Ribble Council,http://statistics.data.gov.uk/doc/local-authority/30UN,HR & Communications,Advertising,4848,A5 leaflets,19/07/2017,0000433386,72.00,Revenue,STONE CREATE LTD,130896
South Ribble Council,http://statistics.data.gov.uk/doc/local-authority/30UN,Property Services,Rents,2401,"2017 / 2018 rental fees for Forward industrial estate, Talbot Road, Leyland PR25 2ZJ. Property Ref 2710/081",12/07/2017,0000433058,"16,147.50",Revenue,STONEWELL PROPERTY COMPANY LTD,00118138
South Ribble Council,http://statistics.data.gov.uk/doc/local-authority/30UN,Area 3 - Parks/Leyland East West,Grounds Maint Cntrctrs Chgs,4657,SRE 600 CABLEWAY PENDULUM SEAT ASSEMBLY,14/07/2017,0000432903,481.92,Revenue,SUTCLIFFE PLAY LTD,00034953
South Ribble Council,http://statistics.data.gov.uk/doc/local-authority/30UN,Area 3 - Parks/Leyland East West,Grounds Maint Cntrctrs Chgs,4657,CARRIAGE,14/07/2017,0000432903,48.19,Revenue,SUTCLIFFE PLAY LTD,00034953
South Ribble Council,http://statistics.data.gov.uk/doc/local-authority/30UN,Area 2 - Waste Transport/Eastern & Central Teams,External Contractors Charges,4570,BRAKE TESTER CALIBRATION AND HEAD LIGHT CALIBRATION,28/07/2017,0000433385,400.50,Revenue,Tecalemit Garage Equipment Company Limited,132135
South Ribble Council,http://statistics.data.gov.uk/doc/local-authority/30UN,Area 2 - Waste Transport/Eastern & Central Teams,Materials General,4040,"1 sensor, 1 cable, VO65 KRE, JFC8908. (NAME REDACTED)",05/07/2017,0000433148,506.02,Revenue,TERBERG MATEC UK LTD,00058625
South Ribble Council,http://statistics.data.gov.uk/doc/local-authority/30UN,Area 2 - Waste Transport/Eastern & Central Teams,Materials General,4040,"1 sensor, 1 cable for bin no 374",05/07/2017,0000433148,506.02,Revenue,TERBERG MATEC UK LTD,00058625
South Ribble Council,http://statistics.data.gov.uk/doc/local-authority/30UN,Area 2 - Waste Transport/Eastern & Central Teams,Materials General,4040,"2 shocker rams, PO13 UUM, JFC8956. (NAME REDACTED)",12/07/2017,0000433290,821.68,Revenue,TERBERG MATEC UK LTD,00058625
South Ribble Council,http://statistics.data.gov.uk/doc/local-authority/30UN,Area 2 - Waste Transport/Eastern & Central Teams,Materials General,4040,"4 bin lift switches, VO65 KRE (NAME REDACTED)",28/07/2017,0000433525,435.73,Revenue,TERBERG MATEC UK LTD,00058625
South Ribble Council,http://statistics.data.gov.uk/doc/local-authority/30UN,Regeneration,Professional Fees,4520,Maintenance of hives and bees for the period March - May 2017,28/07/2017,0000433587,450.00,Revenue,The Bee centre,132104
South Ribble Council,http://statistics.data.gov.uk/doc/local-authority/30UN,Information Services,Peripherals,4243,Copyright Compliance  - 31 staff members,05/07/2017,0000433143,687.27,Revenue,The Copyright Licensing Agency Ltd,132241
South Ribble Council,http://statistics.data.gov.uk/doc/local-authority/30UN,Building Control,Microfilming,4151,Scanning Building Control Files (87.5 boxes),05/07/2017,0000432921,"5,865.00",Revenue,UK DOCUMENT IMAGING,00111999
South Ribble Council,http://statistics.data.gov.uk/doc/local-authority/30UN,Area 1 - Penwortham Western Parishes,Materials General,4040,HIRE OF STANDPIPE (09A019401 / 08A110488) 1.4.17 TO 30.6.17,14/07/2017,0000433306,283.26,Revenue,UNITED UTILITIES,00116800
South Ribble Council,http://statistics.data.gov.uk/doc/local-authority/30UN,Property Services,Operational Furniture & Equip,4012,Annual Contract for 2017/2018 to cover the rental and the vending  machines at the Civic Centre,12/07/2017,0000433109,322.09,Revenue,VENDING ENTERPRISES,00101501
South Ribble Council,http://statistics.data.gov.uk/doc/local-authority/30UN,Healthy Communities,Provisions,4311,Stock for coffee machines,19/07/2017,0000433183,518.85,Revenue,VENDING ENTERPRISES,00101501
South Ribble Council,http://statistics.data.gov.uk/doc/local-authority/30UN,Regeneration,Advertising,4842,Event Hire,19/07/2017,0000433214,250.00,Revenue,Vernon Carus Cricket & Sports Club,132290
South Ribble Council,http://statistics.data.gov.uk/doc/local-authority/30UN,Information Services,Peripherals,4269,"Annual purchase order for ISDN lines, line rentals & call charges for period 01/04/17 - 31/03/18",05/07/2017,0000433007,"1,223.18",Revenue,VODAFONE RE:CABLE & WIRELESS UK,130810
South Ribble Council,http://statistics.data.gov.uk/doc/local-authority/30UN,Information Services,Peripherals,4247,"Moss Side link, internet & router - July 17",07/07/2017,0000433159,"1,312.66",Revenue,VODAFONE RE:CABLE & WIRELESS UK,130810
South Ribble Council,http://statistics.data.gov.uk/doc/local-authority/30UN,Information Services,Processing-Internal,4212,Annual purchase order for GSi Convergence Framework for period 01/04/17 - 31/03/18,07/07/2017,0000433182,"2,795.69",Revenue,VODAFONE RE:CABLE & WIRELESS UK,130810
South Ribble Council,http://statistics.data.gov.uk/doc/local-authority/30UN,Area 2 - Waste Transport/Eastern & Central Teams,External Contractors Charges,4570,SPEC REPAIR (REPLACE GEARBOX) - JFC8850 - PF08PGY - PD,28/07/2017,0000433523,"4,685.66",Revenue,WALTON SUMMIT TRUCK CENTRE LTD,00038580
South Ribble Council,http://statistics.data.gov.uk/doc/local-authority/30UN,Property Services,Water Charges,2511,10/11/16 to 14/5/17,12/07/2017,0000433012,"3,608.33",Revenue,WATER PLUS,00029845
South Ribble Council,http://statistics.data.gov.uk/doc/local-authority/30UN,Property Services,Rates,2412,Rates,14/07/2017,0000433282,"1,702.72",Revenue,WATER PLUS,00029845
South Ribble Council,http://statistics.data.gov.uk/doc/local-authority/30UN,Property Services,Rates,2412,Rates,14/07/2017,0000433282,135.94,Revenue,WATER PLUS,00029845
South Ribble Council,http://statistics.data.gov.uk/doc/local-authority/30UN,Property Services,Rates,2412,Rates,14/07/2017,0000433282,17.12,Revenue,WATER PLUS,00029845
South Ribble Council,http://statistics.data.gov.uk/doc/local-authority/30UN,Property Services,Rates,2412,Rates,14/07/2017,0000433282,50.92,Revenue,WATER PLUS,00029845
South Ribble Council,http://statistics.data.gov.uk/doc/local-authority/30UN,Property Services,Rates,2412,Rates,14/07/2017,0000433282,135.94,Revenue,WATER PLUS,00029845
South Ribble Council,http://statistics.data.gov.uk/doc/local-authority/30UN,Property Services,Rates,2412,Rates,14/07/2017,0000433282,"1,702.72",Revenue,WATER PLUS,00029845
South Ribble Council,http://statistics.data.gov.uk/doc/local-authority/30UN,Property Services,Rates,2412,Rates,14/07/2017,0000433282,"7,918.34",Revenue,WATER PLUS,00029845
South Ribble Council,http://statistics.data.gov.uk/doc/local-authority/30UN,Property Services,Rates,2412,Rates,14/07/2017,0000433282,81.22,Revenue,WATER PLUS,00029845
South Ribble Council,http://statistics.data.gov.uk/doc/local-authority/30UN,Property Services,Rates,2412,Rates,14/07/2017,0000433282,30.73,Revenue,WATER PLUS,00029845
South Ribble Council,http://statistics.data.gov.uk/doc/local-authority/30UN,Property Services,Rates,2412,Rates,14/07/2017,0000433282,"15,043.92",Revenue,WATER PLUS,00029845
South Ribble Council,http://statistics.data.gov.uk/doc/local-authority/30UN,Property Services,Rates,2412,Rates,14/07/2017,0000433282,10.54,Revenue,WATER PLUS,00029845
South Ribble Council,http://statistics.data.gov.uk/doc/local-authority/30UN,Property Services,Rates,2412,Rates,14/07/2017,0000433282,337.68,Revenue,WATER PLUS,00029845
South Ribble Council,http://statistics.data.gov.uk/doc/local-authority/30UN,Property Services,Rates,2412,Rates,14/07/2017,0000433282,6.59,Revenue,WATER PLUS,00029845
South Ribble Council,http://statistics.data.gov.uk/doc/local-authority/30UN,Property Services,Rates,2412,Rates,14/07/2017,0000433282,57.51,Revenue,WATER PLUS,00029845
South Ribble Council,http://statistics.data.gov.uk/doc/local-authority/30UN,Property Services,Rates,2412,Rates,14/07/2017,0000433282,8.34,Revenue,WATER PLUS,00029845
South Ribble Council,http://statistics.data.gov.uk/doc/local-authority/30UN,Property Services,Rates,2412,Rates,14/07/2017,0000433282,44.78,Revenue,WATER PLUS,00029845
South Ribble Council,http://statistics.data.gov.uk/doc/local-authority/30UN,Property Services,Rates,2412,Rates,14/07/2017,0000433282,135.94,Revenue,WATER PLUS,00029845
South Ribble Council,http://statistics.data.gov.uk/doc/local-authority/30UN,HR & Communications,Advertising,4848,WORK CARRIED OUT FOR SOCIAL MEDIA CONCERNS/DEFAMATION,14/07/2017,0000433376,500.00,Revenue,WEIGHTMANS LLP,00120867
South Ribble Council,http://statistics.data.gov.uk/doc/local-authority/30UN,Legal,Advertising,4848,WORK CARRIED OUT FOR SOCIAL MEDIA CONCERNS/DEFAMATION,28/07/2017,0000433426,"1,033.50",Revenue,WEIGHTMANS LLP,00120867
South Ribble Council,http://statistics.data.gov.uk/doc/local-authority/30UN,HR & Communications,Consultancy Fees,4541,INVESTIGATION RE WORK CARRIED OUT INTO THE LEAKED INFORMATION MAY - JUNE 2017,26/07/2017,0000433546,"2,385.00",Revenue,WEIGHTMANS LLP,00120867
South Ribble Council,http://statistics.data.gov.uk/doc/local-authority/30UN,Property Services,Other Misc,4421,"Hunters Lodge, Walton Park, Preston, PR5 4PL Provision to above site address of  1 no mobile polling station 6.0 m x 2.0 m ",12/07/2017,0000433235,750.00,Revenue,Wernick Hire Ltd,131449
South Ribble Council,http://statistics.data.gov.uk/doc/local-authority/30UN,Regeneration,Other Misc,4851,Stage Hire,19/07/2017,0000433181,500.00,Revenue,West Coast Hire and Events Ltd,132281
South Ribble Council,http://statistics.data.gov.uk/doc/local-authority/30UN,Area 3 - Parks/Leyland East West,Grounds Maint Cntrctrs Chgs,4657,1x 5901-121 Yo Yo/Bobbin Basketchains c/w fixing pack.,14/07/2017,0000433356,327.00,Revenue,WICKSTEED LEISURE LTD,00038661
South Ribble Council,http://statistics.data.gov.uk/doc/local-authority/30UN,Area 3 - Parks/Leyland East West,Grounds Maint Cntrctrs Chgs,4657,Carriage,14/07/2017,0000433356,27.80,Revenue,WICKSTEED LEISURE LTD,00038661
South Ribble Council,http://statistics.data.gov.uk/doc/local-authority/30UN,Area 3 - Parks/Leyland East West,Grounds Maint Cntrctrs Chgs,4657,10 Hardwood Posts of various sizes as per Quote ref 2/LC/Q37950A dated 2.6.17,14/07/2017,0000432832,"1,474.40",Revenue,WOODCSCAPE LIMITED,00113942
South Ribble Council,http://statistics.data.gov.uk/doc/local-authority/30UN,HR & Communications,Training Expense-Course Fees,1408,OCC HEALTH ACTIVITY FOR MAY 2017,14/07/2017,0000433304,476.00,Revenue,WRIGHTINGTON WIGAN & LEIGH NHS FOUNDATION TRUST,131288
South Ribble Council,http://statistics.data.gov.uk/doc/local-authority/30UN,HR & Communications,Training Expense-Course Fees,1408,OCC HEALTH ACTIVITY FOR JUNE 2017,14/07/2017,0000433304,476.00,Revenue,WRIGHTINGTON WIGAN & LEIGH NHS FOUNDATION TRUST,131288
South Ribble Council,http://statistics.data.gov.uk/doc/local-authority/30UN,Neighbourhood Admin & Support,Clothing- Uniforms & Laundry,4410,BOOTS � ROCKFALL EBONITE -SIZE 8 - ROK461,28/07/2017,0000433384,152.00,Revenue,Yeshili Relective Material T/A VIZWEAR,132098
South Ribble Council,http://statistics.data.gov.uk/doc/local-authority/30UN,Neighbourhood Admin & Support,Clothing- Uniforms & Laundry,4410,BOOTS � ROCKFALL EBONITE - SIZE 9 - ROK461,28/07/2017,0000433384,152.00,Revenue,Yeshili Relective Material T/A VIZWEAR,132098
South Ribble Council,http://statistics.data.gov.uk/doc/local-authority/30UN,Neighbourhood Admin & Support,Clothing- Uniforms & Laundry,4410,BOOTS � ROCKFALL EBONITE -SIZE 10 - ROK461,28/07/2017,0000433384,152.00,Revenue,Yeshili Relective Material T/A VIZWEAR,132098
